Workbook

Sheet Introducción
A4: Simulador
A5: COSTOS DE PRODUCCIÓN E IMPACTO ECONÓMICO DE ENFERMEDADES
A7: Granja Porcícola de Ciclo Completo o Cría
A10: Consideraciones legales frente a la propiedad intelectual y su uso
A11: El presente simulador de costos de producción fue desarrollado por la Porkcolombia - FNP y a ella pertenecen los derechos de propiedad industrial y derechos de autor, por tanto su reproducción o distribución total o parcial con fines comerciales o ánimo de lucro está prohibida y sujeta a sanciones legales.
A15: Esta herramienta es un mecanismo para estimar los costos aproximados de producción de acuerdo a los datos ingresados para cada unidad productiva, su uso y resultados son de responsabilidad exclusiva del productor y no compromete en modo alguno a Porkcolombia - FNP.
A20: El simulador de costos de producción tiene por objetivo brindar al productor una herramienta de análisis que le permita estimar su costo de producción (hasta planta de beneficio) y su utilidad bruta, también pretende analizar el impacto en el costo de producción y productividad cuando se realiza un cambio y/o intervención en el manejo o cuando el estatus sanitario es alterado por la presencia de una enfermedad en la granja.
A27: Esta herramienta está diseñada para granjas de ciclo completo y cría. Usted puede seleccionar una opción al inicio (ciclo completo o cría) y luego desarrollar el simulador que consta de tres partes, a continuación una breve explicación:
A30: Para diligenciarlo tenga en cuenta las instrucciones o etiquetas que se muestran en cada una de las celdas, cuando de clic sobre la casilla.
A33: Tenga en cuenta que: - Los datos que aparecen diligenciados en la herramienta, no representan los datos óptimos de una granja, solo es un ejemplo. - Los datos que ingrese son promedio. Por ejemplo en duración de la etapa lactancia, una cerda tarda 22 días y otra 20 días, el promedio es de (20+22/2) 21 días. - Siempre que ingrese un dato que contenga cifras decimales, asegúrese de escribirlo con coma (,). La forma correcta es 0,01.
A46: PARTE 1
A47: 1. Datos actuales de su granja
A48: Cuando ingrese a la pestaña inicio encontrará la página principal del simulador con datos productivos de una granja de 100 hembras, tales datos pueden ser modificados por usted, de acuerdo con los datos de su granja. Solamente inserte datos en las casillas en blanco. Las que aparecen en gris no le permiten el ingreso de información, pero son producto de los datos que ha ingresado previamente o después.
A54: Gestación
A55: En esta etapa ingrese información referente al número de hembras (vacías + gestantes), la tasa de parición, el intervalo destete - servicio (días), el número de nacidos totales, el porcentaje de nacidos muertos y el porcentaje de momificados.
A58: La información requerida aparece de la siguiente forma:
A67: Lactancia
A68: En esta etapa se solicitan los siguientes datos: número de hembras en lactancia, días que dura la etapa , porcentaje de mortalidad en lactancia (predestete) y el peso del lechón al destete. El cuadro que le solicitará la información es como el que aparece a continuación.
A76: Precebo
A77: Aquí se solicita información sobre días que dura la etapa, porcentaje de mortalidad, peso al finalizar la etapa y merma por transporte. En cuanto al número de lechones este se halla con los valores suministrados en las anteriores etapas (es una casilla es gris, no le permite el ingreso de datos).
A90: Para el índice de conversión que también es una casilla gris, no modificable, no ingrese información porque es el resultado de los datos que ingrese después, en el cuadro de alimentación.
A94: Levante y engorde
A95: En esta etapa ingrese información sobre la duración, porcentaje de mortalidad y peso al finalizar la etapa. En número de cerdos de engorde e índice de conversión no ingrese información, la herramienta le arrojará un estimado.
A104: Nota: Pestañas Reemplazos, Gestación, Lactancia, Precebo y Engorde
A105: Cuando usted da clic en el título de cada etapa, la herramienta lo traslada hasta una pestaña de la etapa donde aparecen los datos específicos de la misma, de acuerdo con la información que suministró al "inicio". Si usted desea ser más preciso con la estimación de sus costos diríjase a esa pestaña y cambie algunas variables como el precio de la hembra de reemplazo en "Reemplazos" o el tiempo de depreciación y el valor de los equipos e instalaciones (disponible en todas las etapas).
A113: Gráficos
A114: En la parte derecha le aparecerá un gráfico en el que se muestra el balance de su operación , que es un valor aproximado de su ingreso, costo y utilidades, permitiéndole ver de manera global si su operación es positiva o negativa.
A117: En la parte inferior aparecerá un diagrama de torta en el que podrá observar la distribución de sus costos, una vez ingrese todos los datos solicitados.
A120: 1.1 Insumos: alimento, mano de obra, instalaciones, equipo y otros
A122: Alimento
A123: Aquí se solicita información sobre el consumo promedio diario de alimento en kilos, y el precio del mismo, incluyendo el costo de transporte hasta la granja. Si usted reclama IVA, entonces inserte el valor con el descuento por devolución.
A133: Trate de ser muy preciso con la información de este ítem, pues representa la mayor parte de sus costos (alrededor del 75%) y una pequeña desviación en los datos lo alejará en gran medida del resultado real.
A137: Mano de obra
A138: Acá solo se solicita información sobre el número de personas por etapa y el salario que recibe el trabajador. Por ejemplo, la etapa de lactancia emplea una persona que percibe un salario de $1.100.000, en otras etapas se distribuyeron proporcionalmente los trabajadores, como se muestra en tabla a continuación:
A149: Como se observa hay algunas celdas en gris, son no modificables. Su interpretación es la siguiente: No. de cerdos, se refiere al número de cerdos de la etapa (valor suministrado por usted en las etapas anteriores en la pestaña de inicio) en gestación son 170. Número de animales atendidos por persona, son la cantidad de animales que están a cargo de un empleado de tiempo completo, en este caso es de 71 hembras por trabajador. Si no tiene alguna etapa o no va a cargar costo en alguna, deje en cero en la casilla de No. Personas en vez de modificar el valor del salario.
A155: Instalaciones y equipo
A156: En este apartado escriba un valor promedio mensual del costo de arrendamiento por hembra, por cerdo gordo y reparaciones.
A162: Puede hallarlo así: divida el costo de la obra civil y los equipos entre en el tiempo de depreciación (en meses, 120). Teniendo el resultado de la operación anterior, divídalo nuevamente en el número de hembras o cerdos de engorde del inventario (también puede hallarlo colocando el valor del metro cuadrado de la obra civil en cada etapa).
A168: El costo por reparaciones es un valor promedio de reparaciones por etapa. En este caso es de $35.000, quiere decir que cada etapa en promedio tuvo reparaciones mensuales por ese monto.
A175: Otros costos
A176: Hacen referencia al valor de las vacunas, medicamentos, servicios públicos, elementos y productos de desinfección y otros(internet, telefonía, combustible para bomba de fertilizar).
A186: PARTE 2: Proyección
A187: Corresponde al recuadro del lado derecho. Una vez haya ingresado los datos iniciales de su granja, los datos de la proyección también arrastran esos datos, pero aquí puede cambiarlos y realizar comparaciones con la parte inicial.
A191: Para observar los efectos en los parámetros, asuma un cambio a la vez y observe el resultado. De esta forma podrá ver la incidencia en sus costos, ingresos y utilidad bruta, usted puede retornar al estado inicial dando clic en el botón "limpiar proyección". Realice cambios mesurados, que puedan cumplirse en corto o mediano pazo y haga los ajustes necesarios en su granja para alcanzar esa proyección.
A198: Puede suponer diferentes escenarios; por ejemplo,
A200: 1. Una mejora genética o manejo reproductivo (aumento de la tasa de parición y el número de nacidos, entre otras variables) , entonces vaya a la sección reemplazos y cambie el valor por el de la nueva hembra que ingresará a la granja, también modifique la tasa de reposición.
A204: 2. Cambio en algún procedimiento reproductivo (manejo de semen, técnica de inseminación, detección apropiada de celos, etc.)
A207: PARTE 3: Beneficio económico ambiental adicional de su granja
A208: Hace referencia al tema ambiental, allí podrá observar cuál es el beneficio económico de utilizar la porcinaza como un insumo para la fertilización de los cultivos presentes en su granja. En ese ítem no debe ingresar ningún dato (excepto si desea actualizar los precios de los fertilizantes), el simulador toma el inventario de su granja, hace la conversión a urea, DAP (fosfato diamónico) y KCL (cloruro de potasio) y le muestra el valor correspondiente.
A216: Tenga en cuenta que el valor resultante es un estimado y no corresponde al valor comercial de la porcinaza.
A219: Supuestos:
A220: La depreciación de las instalaciones y el equipo se realiza a 10 y 5 años, respectivamente; pero comúnmente se establece que es a 20 y 10 años. Dada la duración de los bienes que realmente se percibe en granja, se redujo el tiempo de depreciación para ser más cercanos a la realidad.
A224: El valor de la mano de obra se proporciona en el cuadro denominado "mano de obra" y se tienen en cuenta los aportes parafiscales considerados por la ley, a partir del salario básico del 2017.
A227: No se incluyen gastos de operación (administración y ventas), inversión en terrenos y gastos financieros.
A229: El valor del costo que aparece en el simulador esta asociado a los parámetros productivos de los costos mensuales publicados por PorkColombia en www.asociados.porkcolombia.co.
A231: El precio del cerdo en pie corresponde al precio publicado por Porkcolombia en la tercera semana del 2017. Usted puede cambiar o actualizar ese valor, si lo desea.
A234: Si desea contar con asesoría para diligenciar la herramienta o tiene alguna duda comuníquese con nosotros al Programa Nacional de Mejoramiento de Bioseguridad, Sanidad y Productividad - teléfono: 2486777 ext.: 161 - 217 o al celular 3114801076.
A239: Elaborado por el Programa Nacional de Mejoramiento de Bioseguridad, Sanidad y Productividad.
A240: Versión 2.2 (2018)

Sheet Inicio
A3: Simulador
C4: COSTOS DE PRODUCCIÓN E IMPACTO ECONÓMICO DE ENFERMEDADES
C6: Granja Porcícola de Ciclo Completo o Cría
B8: 1. Datos actuales de su granja | AN8: 2. Proyección y sensibilización
AN9: Esta parte del simulador está basada en los datos que escribió al inicio, cambie los valores para observar y comparar con el escenario inicial.
B10: Tipo de producción | N10: Ciclo completo
B14: Número de hembras activas | N14: =+L24+L33 -> 200 | AN14: Número de hembras activas | AZ14: =+AX24+AX33 -> 200
N15: =+N14 -> 200
BK17: =+AA19 -> Utilidad bruta mensual
C18: =+IF($N$10="Ciclo completo", "Precio en pie cerdo gordo", "Precio en pie lechón") -> Precio en pie cerdo gordo | L18: Costo de p/n en planta | R18: Costo de p/n en granja | AA18: Beneficio económico | AO18: =+IF($N$10="Ciclo completo", "Precio en pie cerdo gordo", "Precio en pie lechón") -> Precio en pie cerdo gordo | AW18: Costo de p/n en planta | BC18: =+R18 -> Costo de p/n en granja | BK18: =+AS153 -> 23307132.37
C19: KG | D19: Estándar | G19: Descarte | L19: =+IF($N$10="Ciclo completo", "Kg por cerdo gordo", "Kg por lechón") -> Kg por cerdo gordo | R19: =+IF($N$10="Ciclo completo", "Kg por cerdo gordo", "Kg por lechón") -> Kg por cerdo gordo | AA19: Utilidad bruta mensual | AO19: KG | AP19: Estándar | AR19: Descarte | AW19: =+L19 -> Kg por cerdo gordo | BC19: =+R19 -> Kg por cerdo gordo | BK19: =+IF(AK22<0,"Su utilidad mensual disminuyó en:","Su utilidad mensual se incrementó en:") -> Su utilidad mensual se incrementó en:
D20: 5400 | G20: 2000 | L20: =+Resultados!C71 -> 4777.993023 | R20: =+L20-L64 -> 4596.412669 | AA20: =+G153 -> 23307132.37 | AK20: =+ROUND(AW20-L20,0) -> 0 | AP20: =+D20 -> 5400 | AR20: =+G20 -> 2000 | AW20: =+Resultados!C143 -> 4777.993023 | BC20: =+AW20-AX64 -> 4596.412669 | BK20: =+IF(AK22>0,AK22,-AK22) -> 0
AL21: =+AK20 -> 0 | AO21: =+IF(AK20>0,"¡Cuidado! Su costo de p/n (en planta) se incrementó en:","¡Muy bien! Su costo de p/n (en planta) disminuyó en:") -> ¡Muy bien! Su costo de p/n (en planta) disminuyó en: | BC21: =+IF(AK20>0,AK20,(AK20*-1)) -> 0 | BF21: =+IF(BK18<0,"Pero su utilidad es negativa","") -> 
R22: Datos mensuales | AK22: =+BK18-AA20 -> 0 | BD22: =+R22 -> Datos mensuales
C23: Gestación1 | AO23: Gestación
C24: Número de hembras | L24: 170 | AK24: =+IF(AK22<-10,AK22,IF(AK22>10,AK22,IF(AK22>-10,0,IF(AK22<10,0,"error")))) -> 0 | AO24: Número de hembras | AX24: =+N15-AX33 -> 170
C25: Número de machos | L25: 2 | AO25: =+C25 -> Número de machos | AX25: =+L25 -> 2
C26: Tasa de parición ajustada | L26: 0.9 | AO26: =+C26 -> Tasa de parición ajustada | AX26: 0.9
C27: Intervalo destete - servicio | L27: 7 | AO27: Intervalo destete - servicio | AX27: 7
C28: Nacidos totales | L28: 12.4 | AO28: Nacidos totales | AX28: 12.4
C29: Nacidos muertos (%) | L29: 0.03 | AK29: =+L24 -> 170 | AO29: Nacidos muertos (%) | AX29: 0.03
C30: Nacidos momificados (%) | L30: 0.03 | AO30: Nacidos momificados (%) | AX30: 0.03
C32: Lactancia | AO32: =+C32 -> Lactancia
C33: Número de hembras | L33: 30 | AO33: Número de hembras | AX33: =+BA149 -> 30
C34: Duración de la etapa | L34: 21 | AO34: Duración de la etapa | AX34: =+L34 -> 21
C35: % Mortalidad predestete | L35: 0.085 | AO35: % Mortalidad predestete | AX35: =+L35 -> 0.085
C36: Peso al destete | L36: 6 | R36: Nacidos vivos por parto | AD36: =+L28*(1-L29-L30) -> 11.656 | AO36: Peso al destete | AX36: =+L36 -> 6 | BD36: Nacidos vivos por parto | BO36: =+AX28*(1-AX29-AX30) -> 11.656 | BS36: =+BO36-AD36 -> 0
C38: Reemplazos | AO38: Reemplazos
C39: Tasa de reposición | L39: 0.4 | R39: Destetados por camada | AD39: =+N148 -> 10.66524 | AO39: Tasa de reposición | AX39: =+L39 -> 0.4 | BD39: =+AO148 -> Destetados por camada | BO39: =+AZ148 -> 10.66524 | BS39: =+BO39-AD39 -> 0
C40: Edad de ingreso a granja | L40: 90 | AO40: Edad de ingreso a granja | AX40: =+L40 -> 90
C41: Edad del primer servicio | L41: 210 | AO41: Edad del primer servicio | AX41: =+L41 -> 210
R42: Destetados/cerda/año | AD42: =+N148*N147 -> 27.01466065 | BD42: Destetados/cerda/año | BO42: =+AZ147*AZ148 -> 27.01466065 | BS42: =+BO42-AD42 -> 0
C43: Precebo | AO43: Precebo
C44: Número de lechones | L44: =+ROUND((L33*N148)/(L34/7)*(L45/7),0) -> 747 | AO44: Número de lechones | AX44: =ROUND(IF(BO42*AX33*AX45=AD42*L33*L45,L44,((AX33*BO39)/(AX34/7))*(AX45/7)),0) -> 747
C45: Duración de la etapa | L45: 49 | R45: Partos cerda año | AD45: =+N147 -> 2.53296322 | AO45: Duración de la etapa | AX45: =+L45 -> 49 | BD45: Partos cerda año | BO45: =+AZ147 -> 2.53296322 | BS45: =+BO45-AD45 -> 0
C46: % Mortalidad | L46: 0.016 | AO46: % Mortalidad | AX46: =+L46 -> 0.016
C47: Peso al finalizar la etapa | L47: 28 | AO47: Peso al finalizar la etapa | AX47: =IF(AX36=L36,L47,(AX36+16.7)) -> 28
C48: índice de conversión | L48: =+Precebo!F20 -> 1.608090909 | R48: =+IF(N10="Ciclo completo","Total kg enviados a frigorífico (mes)","Total kg enviados al mercado") -> Total kg enviados a frigorífico (mes) | AD48: =+IF(N10="Ciclo completo",((L60*(L55*(1-L59)))),(L60*(L47*(1-L49)))) -> 44437.12 | AO48: índice de conversión | AX48: =+L48 -> 1.608090909 | BD48: =+R48 -> Total kg enviados a frigorífico (mes) | BO48: =+IF(N10="Ciclo completo",(AX60*(AX55*(1-AX59))),(AX60*(AX47*(1-AX49)))) -> 44437.12 | BS48: =+BO48-AD48 -> 0
C49: Merma por transporte | L49: 0 | AO49: =+C49 -> Merma por transporte | AX49: =+L49 -> 0
C51: Levante y engorde | R51: DNP* hembra productiva /año3 | AD51: =+AB147 -> 23.0499653 | AO51: Levante y engorde | BD51: DNP* hembra productiva /año | BO51: =+BL147 -> 23.0499653 | BS51: =+BO51-AD51 -> 0
C52: Número de cerdos | L52: =+ROUND((((L44*(1-(L46+L49)))/(L45/7))*(L53/7)),0) -> 1260 | R52: DNP* hembra presente /año4 | AD52: =(Reemplazos!F23/Reemplazos!F24)+AD51 -> 71.0499653 | AO52: Número de cerdos | AX52: =ROUND((((AX44*(1-(AX46+AX49)))/(AX45/7))*(AX53/7)),0) -> 1260 | BD52: DNP* hembra presente /año | BO52: =+(Reemplazos!G23/Reemplazos!G24)+BO51 -> 71.0499653 | BS52: =+BO52-AD52 -> 0
C53: Duración de la etapa | L53: 84 | AK53: =+Engorde!J37 -> 84 | AO53: Duración de la etapa | AX53: =+AK53 -> 84
C54: % Mortalidad | L54: 0.01 | R54: Productividad final | AO54: % Mortalidad | AX54: =+L54 -> 0.01 | BD54: Productividad final
C55: Peso al finalizar la etapa | L55: 109 | R55: Cerdos gordos por cerda año | AD55: =+IF(N10="Ciclo completo",+K162,K161) -> 26.31660182 | AO55: Peso al finalizar la etapa | AX55: =+IF(AX47=L47,L55,AX47+84.9-AX49) -> 109 | BD55: Cerdos gordos por cerda año | BO55: =+IF(N10="Ciclo completo",+AV162,AV161) -> 26.31660182 | BS55: =+BO55-AD55 -> 0
C56: Índice de conversión de la etapa | L56: =+Engorde!N25 -> 2.354074074 | R56: Kilos producidos cerda año | AD56: =+IF(N10="Ciclo completo",AD55*L55,AD55*L47) -> 2868.509598 | AO56: índice de conversión | AX56: =+L56 -> 2.354074074 | BD56: Kilos producidos cerda año | BO56: =+IF(N10="Ciclo completo",BO55*AX55,BO55*AX47) -> 2868.509598 | BS56: =+BO56-AD56 -> 0
C58: Transporte | R58: Otros datos de interés (valor en granja) | AO58: Transporte | BD58: Otros datos de interés (valor en granja)
C59: Merma por transporte por cerdo | L59: 0.02 | R59: Costo del lechón nacido vivo | AD59: =+Resultados!H62 -> 81447.42779 | AO59: Merma por transporte por cerdo | AX59: =+L59 -> 0.02 | BD59: =+R59 -> Costo del lechón nacido vivo | BP59: =+Resultados!H134 -> 81447.42779
C60: =+IF($N$10="Ciclo completo","Cantidad de cerdos gordos en planta (cada 28 días)","Cantidad de lechones (cada 28 días)") -> Cantidad de cerdos gordos en planta (cada 28 días) | L60: =+IF(N10="Ciclo completo",(ROUND((((L52*(1-L54))/(L53/7))*4),0)),(ROUND((((L44*(1-L46))/(L45/7))*4),0))) -> 416 | R60: Costo del lechón al destete | AD60: =+Resultados!H63 -> 115153.0377 | AO60: =+IF($N$10="Ciclo completo","Cantidad de cerdos gordos en planta (28 días)","Cantidad de lechones (28 días)") -> Cantidad de cerdos gordos en planta (28 días) | AX60: =+IF(N10="Ciclo completo",(ROUND((((AX52*(1-AX54))/(AX53/7))*4),0)),(ROUND((((AX44*(1-AX46))/(AX45/7))*4),0))) -> 416 | BD60: Costo del lechón al destete | BP60: =+Resultados!H135 -> 115153.0377
C61: Número de cerdos por flete | L61: 40 | R61: =+Precebo!B9 -> Costo lechón precebo (28 kilos) | AD61: =+Resultados!H64 -> 201079.6296 | AO61: Número de cerdos por flete | AX61: =+L61 -> 40 | BD61: Costo lechón precebo (28 kilos) | BP61: =+Resultados!H136 -> 201079.6296
C62: Valor del flete | L62: 300000 | R62: =+IF(N10="Ciclo completo", Engorde!B9,"") -> Costo de cerdo engorde (109 kilos) | AD62: =+IF(N10="Ciclo completo",Resultados!H65,"") -> 501008.9809 | AO62: Valor del flete | AX62: =+L62 -> 300000 | BD62: Costo de cerdo engorde (109 kilos) | BP62: =+IF(N10="Ciclo completo",Resultados!H137,"") -> 501008.9809
C63: Número de fletes por mes | J63: =+K157/L61 -> 10.4 | L63: =+ROUNDUP(J63,0) -> 11 | R63: Costo de un día no productivo (h/productiva) | AD63: =+Resultados!H66 -> 5587.9042 | AO63: Número de fletes por mes | AV63: =+K159/AX61 -> 10.4 | AX63: =+ROUNDUP(AV63,0) -> 11 | BD63: Costo de un día no productivo | BP63: =+Resultados!H138 -> 5587.9042
C64: Costo de transporte por kilo2 | L64: =IF($N$10="Ciclo completo",Transporte!E20,Transporte!F20) -> 181.5803543 | R64: =+IF(N10="Ciclo completo","Total días ciclo completo","Total días lechón") -> Total días ciclo completo | AD64: =+IF(N10="Ciclo completo",L34+L45+L53,L34+L45) -> 154 | AO64: Costo de transporte por kilo2 | AX64: =+IF($N$10="Ciclo completo",Transporte!E38,Transporte!F38) -> 181.5803543 | BD64: Total días ciclo completo | BP64: =+IF(N10="Ciclo completo",AX34+AX45+AX53,AX34+AX45) -> 154
C65: 1. Hembras gestación= gestantes + vacías | R65: *DNP (Días No Productivos) | BD65: *DNP (Días No Productivos)
C66: 2. Incluye el costo de la guía de movilización por flete y la cuota de fomento.
C67: 3.DNP hembra productiva: Incluye solo cerdas productivas, a partir de la primera cubrición (es decir, excluye las nulíparas y los DNP asociados a éstas).
C68: 4.DNP hembra presente: incluye los DNP desde el día de llegada de la hembra de reemplazo.
C70: 1.1 Insumos: alimento, mano de obra, instalaciones, equipo y otros | AO70: 2.1 Insumos: mano de obra
C72: Alimento | AO72: Mano de obra
C73: Consumo diario promedio en kilos y precio promedio del kilo de alimento. Haga un promedio del consumo diario lo más acertado posible, pues sus costos dependen en gran medida de esta variable. | AO73: Etapa | AT73: No. de cerdos | AZ73: =+N87 -> Número de animales atendidos por persona | BF73: No. Personas | BL73: Salario básico promedio
AK74: =+IF(AT74>250,AT74/250,T88) -> 0.2 | AO74: Reemplazos | AT74: =+ROUND(Reemplazos!G15,0) -> 26 | AZ74: =+AT74/BF74 -> 130 | BF74: =IF(H88=AT74,T88,AK74) -> 0.2 | BL74: =+Z88 -> 980657
AK75: =+IF(AT75>250,AT75/250,T89) -> 0.4 | AO75: =+C89 -> Machos | AT75: =+AX25 -> 2 | AZ75: 5 | BF75: 0.4 | BL75: 980657
C76: Etapa o Categoría | K76: Consumo diario promedio5 | P76: Precio $/kg promedio | AK76: =+IF(AT76>250,AT76/250,T90) -> 2.4 | AO76: Gestación | AT76: =+AX24 -> 170 | AZ76: 70.83333333 | BF76: 2.4 | BL76: 980657
AK77: =+IF(AT77>100,AT77/100,T91) -> 1 | AO77: Lactancia | AT77: =+AX33 -> 30 | AZ77: 30 | BF77: 1 | BL77: 1100000
C78: Reemplazos o primerizas | K78: 2 | P78: 1350 | AK78: =+IF(AT78>1000,AT78/1000,T92) -> 1 | AO78: Precebo | AT78: =+AX44 -> 747 | AZ78: 747 | BF78: 1 | BL78: 980657
C79: Machos | K79: 2 | P79: 1350 | AK79: =+IF(AT79>2000,AT79/2000,T93) -> 1 | AO79: Ceba | AT79: =+AX52 -> 1260 | AZ79: 1260 | BF79: 1 | BL79: 980657
C80: Cerdas gestación | K80: 2.53 | P80: 1100 | AO80: Profesional de granja | AT80: No aplica | AZ80: =+N94 -> No aplica | BF80: =+T94 -> 1 | BL80: 2400000
C81: Cerdas lactancia | K81: 6.5 | P81: 1400 | AO81: Oficios Varios6 | AT81: No aplica | AZ81: =+N95 -> No aplica | BF81: =+T95 -> 1 | BL81: 980657
C82: Lechones precebo | K82: 0.722 | P82: 2000 | AO82: Total | AT82: =+SUM(AT74:AY81) -> 2235 | AZ82: Total M.O | BF82: =+SUM(BF74:BK81) -> 8 | BL82: =+'Mano Obra'!O38 -> 13830358.35
C83: Cerdos levante y engorde | K83: 2.27 | P83: 1450 | AO83: =+C97 -> 6. Oficios varios: personas que se dedican al mantenimiento de las instalaciones, volantes, manejo ambiental, entre otros.
C84: 5. Los valores de consumo diario promedio fueron tomados del informe de costos publicados por Porkcolombia.
AO85: Proyección de la distribución de los costos hasta planta de beneficio
C86: Mano de obra, mensual
C87: Etapa | H87: No. de cerdos | N87: Número de animales atendidos por persona | T87: No. Personas | Z87: Salario básico mensual promedio
C88: Reemplazos | H88: =+ROUND(Reemplazos!F15,0) -> 26 | N88: =+H88/T88 -> 130 | T88: 0.2 | Z88: 980657
C89: Machos | H89: =+L25 -> 2 | N89: 5 | T89: 0.4 | Z89: 980657
C90: Gestación | H90: =+L24 -> 170 | N90: 70.83333333 | T90: 2.4 | Z90: 980657
C91: Lactancia | H91: =+L33 -> 30 | N91: 30 | T91: 1 | Z91: 1100000
C92: Precebo | H92: =+L44 -> 747 | N92: 747 | T92: 1 | Z92: 980657
C93: Ceba o engorde | H93: =+L52 -> 1260 | N93: 1260 | T93: 1 | Z93: 980657
C94: Profesional de granja | H94: No aplica | N94: No aplica | T94: 1 | Z94: 2400000
C95: Oficios Varios6 | H95: No aplica | N95: No aplica | T95: 1 | Z95: 980657
C96: Total | H96: =+SUM(H88:M93) -> 2235 | N96: Total M.O | T96: =+SUM(T88:Y95) -> 8 | Z96: =+'Mano Obra'!O20 -> 13830358.35
C97: 6. Oficios varios: personas que se dedican al mantenimiento de las instalaciones, volantes, manejo ambiental, entre otros.
C99: Instalaciones y equipo7, mensual
C100: Costo de arrendamiento por hembra | M100: 32297
C101: Costo de arrendamiento por cerdo gordo | M101: 5137
C102: Costo por reparaciones promedio por etapa | M102: 35000 | T102: =+SUM(M100:R102) -> 72434
C103: 7. El costo de arrendamiento es un costo asociado al valor de las instalaciones y el equipo. El costo de arrendamiento por hembra se halla como un promedio de las etapas gestación y lactancia y el costo de arrendamiento por cerdo gordo es un promedio de las etapas levante y engorde. | AN103: 3. Beneficio económico ambiental adicional de su granja
C105: Otros costos, mensual | AO105: Si usted utiliza la porcinaza como fertilizante, puede generar valor agregado y disminuir sus costos de producción. ¿Cuánto percibe por darle a este subproducto un trato adecuado?
C106: Valor aproximado de otros costos por mes
C107: Item | M107: Valor
C108: Medicamentos | M108: 800000 | AO108: Para hallar el valor económico de la porcinaza se realiza una conversión teniendo en cuenta sus principales componentes, tales como nitrógeno, fósforo y potasio. El valor resultante es un estimado, no corresponde al valor comercial de la porcinaza.
C109: Vacunas | M109: 2400000
C110: Servicios públicos
C111: Energía Eléctrica | M111: 2400000 | AO111: A continuación encontrará el precio de referencia de la urea, DAP y KCL8 para los principales componentes de la porcinaza, nitrógeno, fosforo y potasio.
C112: Gas | M112: 1000000
C113: Agua | M113: =1116000*2 -> 2232000
C114: Recolección de residuos peligrosos | M114: =350000*2 -> 700000
C115: Limpieza y desinfección | AO115: Equivalencia económica de la porcinaza en Urea, DAP y KCL
C116: Elementos (baldes, escobas, etc.) | M116: =100000*2 -> 200000 | AO116: Elemento | AS116: Producción | AW116: Valor por kilo Ref. | BB116: Precio referencia9 (Bulto)
C117: Productos (jabón, desinfectantes, etc.) | M117: 400000
C118: Otros costos | M118: 1000000 | AO118: Nitrógeno | AS118: =+Ambiental!J13 -> 2825.689101 | AW118: =+BB118/50 -> 1164.535662 | BB118: 58226.78311
C119: Total | M119: =+SUM(M108:R118) -> 11132000 | AO119: Fósforo | AS119: =+Ambiental!J26 -> 4624.034869 | AW119: =+BB119/50 -> 1843.218056 | BB119: 92160.90278
AO120: Potasio | AS120: =+Ambiental!J39 -> 1879.326622 | AW120: =+BB120/50 -> 1316.412414 | BB120: 65820.62071
C122: Distribución de los costos hasta planta de beneficio
AO123: Valor de la porcinaza (por mes granja) | BC123: =+(AS118*AW118)+(AS119*AW119)+(AS120*AW120) -> 14287689.18
AO126: Beneficio ambiental por kilogramo producido 10 | BC126: =+BC123/AD48 -> 321.5259941
AO129: Costo de producción (con beneficio ambiental) | BC129: =+L20-BC126 -> 4456.467029
AO134: 8. DAP= Fosfato diamónico KCL= Cloruro de potasio
AO135: 9. Precio promedio nacional del kilo de Urea, DAP y KCL- Tomado de Sipsa - Dane (mayo 2016)
AO136: 10. El beneficio ambiental es la relación entre el valor de la porcinaza y el total de kilos al mercado en peso vivo
AA140: Ir al inicio
K143: días productivos | T143: =+L34+Gestación!F18 -> 135 | AC143: días extra | AG143: 21 | AO143: PROYECCIÓN | AX143: días productivos | BG143: =+AX34+[1]Gestación!F18 -> 135 | BL143: días extra | BP143: 21
C144: Otros indicadores | K144: Hembras que paren en tiempo ok | T144: =+L26*N14 -> 180 | AC144: días ok | AG144: =+L27+L34+Gestación!F18 -> 142 | AJ144: =+AG144*T144 -> 25560 | AO144: Otros indicadores | AX144: Hembras que paren en tiempo ok | BG144: =+AX26*AZ14 -> 180 | BL144: días ok | BP144: =+AX27+AX34+[1]Gestación!F18 -> 142 | BS144: =+BP144*BG144 -> 25560
K145: hembras que repiten | T145: =+(100%-L26)*N14 -> 20 | AC145: dias :( | AG145: =+AG144+AG143 -> 163 | AJ145: =+AG145*T145 -> 3260 | AX145: hembras que repiten | BG145: =+(100%-AX26)*AZ14 -> 20 | BL145: dias :( | BP145: =+BP144+BP143 -> 163 | BS145: =+BP145*BG145 -> 3260
C146: Partos esperados por hembra | N146: =(365/(AJ151))/L39 -> 6.33240805 | U146: =+AJ151 -> 144.1 | AH146: =+SUM(AJ144:AK145) -> 28820 | AO146: Partos esperados por hembra | AZ146: =(365/(BS151))/AX39 -> 6.33240805 | BG146: =+BS151 -> 144.1 | BS146: =+SUM(BS144:BT145) -> 28820
C147: Partos/cerda/año | N147: =365/U148 -> 2.53296322 | AB147: =+V153 -> 23.0499653 | AO147: Partos/cerda/año | AZ147: =365/BG148 -> 2.53296322 | BL147: =+BI154 -> 23.0499653
C148: Destetados por camada | N148: =+AD36*(1-L35) -> 10.66524 | U148: =+SUM(U146:Y147) -> 144.1 | AB148: =+AB147+U146 -> 167.1499653 | AO148: Destetados por camada | AZ148: =+BO36*(1-AX35) -> 10.66524 | BG148: =+SUM(BG146:BK147) -> 144.1 | BL148: =+BG146+BL147 -> 167.1499653
AO149: hembras en lactancia | BA149: =+BA150*BA151 -> 30
BA150: =+AK29*AX26 -> 153
C151: Ingreso | G151: =+D20*AD48 -> 239960448 | AC151: Total días promedio | AJ151: =+AH146/N14 -> 144.1 | AO151: Ingreso | AS151: =+AP20*BO48 -> 239960448 | BA151: =+L33/(L24*L26) -> 0.1960784314 | BL151: Total días promedio | BS151: =+BS146/AZ14 -> 144.1
C152: Costo | G152: =+IF($N$10="Ciclo completo",((L55)*L60)*L20,(L60*L47)*L20) -> 216653315.6 | O152: dias no productivos ciclo | V152: =+U146-T143 -> 9.1 | AC152: product + no pro | AO152: Costo | AS152: =+IF($N$10="Ciclo completo",((AX55)*AX60)*AW20,(AX60*AX47)*AW20) -> 216653315.6 | BL152: product + no pro
C153: Beneficio | G153: =+G151-G152 -> 23307132.37 | O153: dias no prod año | V153: =+V152*N147 -> 23.0499653 | AO153: Beneficio | AS153: =+AS151-AS152 -> 23307132.37 | BB153: dias no productivos ciclo | BI153: =+BG146-BG143 -> 9.1
BB154: dias no prod año | BI154: =+BI153*AZ147 -> 23.0499653
C157: Transporte | K157: =+IF(N10="Ciclo completo",(ROUND((((L52*(1-L54))/(L53/7))*4),0)),(ROUND((((L44*(1-L46))/(L45/7))*4),0))) -> 416
C159: Transporte pred | K159: =+IF(N10="Ciclo completo",(ROUND((((AX52*(1-AX54))/(AX53/7))*4),0)),(ROUND((((AX44*(1-AX46))/(AX45/7))*4),0))) -> 416
C161: kilo hembra año precebo | K161: =+AD42*(1-L46) -> 26.58242608 | AR161: kilo hembra año precebo | AV161: =+BO42*(1-AX46) -> 26.58242608
C162: kilo hembra año engorde | K162: =+K161*(1-L54) -> 26.31660182 | AR162: kilo hembra año engorde | AV162: =+AV161*(1-AX54) -> 26.31660182

Sheet Reemplazos
A2: SIMULADOR COSTOS PRODUCCIÓN
A4: HEMBRAS REEMPLAZO
B10: Costo periodo de aclimatación (hembra reemplazo) | F10: =+F47 -> 2789514.321
B13: Datos productivos de la etapa | G13: proy. | J13: Instalaciones y equipo
B14: Tasa de reposición | F14: =+Inicio!L39 -> 0.4 | G14: =+Inicio!AX39 -> 0.4 | J14: Valor arrendamiento por cerda | N14: =+IF(P14=0,O14,P14) -> 32297 | O14: =+O15+O16 -> 32296.09333 | P14: =+Inicio!M100 -> 32297
B15: Número de hembras de reemplazo por ciclo | F15: =+(((Inicio!L24+Inicio!L33)*Inicio!L39)/365)*F23 -> 26.30136986 | G15: =+((Inicio!AX39*(Inicio!AX33+Inicio!AX24))/365)*G23 -> 26.30136986 | J15: Valor metro cuadrado (obra civil) | N15: 451420 | O15: =+(N15/(N17*12)) -> 3761.833333
B16: Precio hembra de reemplazo | F16: 950000 | G16: =+F17 -> 950000 | J16: Valor equipos de la etapa por metro cuadrado | N16: 20677 | O16: =+N16*O19 -> 28534.26
B17: Precio hembra de reemplazo proyección | F17: =+F16 -> 950000 | J17: Depreciación instalaciones | N17: 10
B18: Número de reproductores y receladores | F18: =+Inicio!L25 -> 2 | G18: =+Inicio!AX25 -> 2 | J18: Depreciación equipo | N18: 10 | P18: =+Inicio!M102 -> 35000
B19: Precio reproductor | F19: 13400000 | G19: =+F20 -> 13400000 | J19: Gastos mensuales en reparaciones | N19: 35000 | O19: =2.3*0.6 -> 1.38
B20: Precio reproductor proyección | F20: =+F19 -> 13400000 | O20: =+IF(P18=0,N19,P18) -> 35000
B21: Precio venta reproductor descarte | F21: =250*Inicio!G20 -> 500000 | G21: =250*Inicio!$AR$20 -> 500000 | J21: Alimento
B22: Precio venta hembra de descarte | F22: =250*Inicio!G20 -> 500000 | G22: =250*Inicio!$AR$20 -> 500000 | J22: Consumo diario por hembra (kg) | N22: =+Inicio!K78 -> 2 | O22: =+N22 -> 2
B23: Periodo de adaptación - aclimatación (días) | F23: =+Inicio!L41-Inicio!L40 -> 120 | G23: =+Inicio!AX41-Inicio!AX40 -> 120 | J23: Duración consumo alimento (días) | N23: =+F23 -> 120 | O23: =+G23 -> 120
B24: Vida útil hembra de reemplazo | F24: =+Inicio!N146/Inicio!N147 -> 2.5 | G24: =+Inicio!AZ146/Inicio!AZ147 -> 2.5 | J24: Valor alimento hembra por kilogramo ($) | N24: =+Inicio!P78 -> 1350 | O24: =+N24 -> 1350
B25: Vida útil reproductor | F25: =+F24 -> 2.5 | G25: =+F25 -> 2.5
F26: =+F15/F23*365 -> 80 | G26: =+G15/G23*365 -> 80 | J26: Vacunas y medicamentos
B27: Mano de obra | G27: proy. | J27: Total vacunas y consumibles | N27: =+Inicio!$M$109*Reemplazos!M48 -> 960000
B28: Cerdos por persona | F28: =+Inicio!N88 -> 130 | G28: =+'Mano Obra'!F30 -> 130 | J28: Total medicamentos y consumibles | N28: =+Inicio!$M$108*Reemplazos!N48 -> 160000
B29: Salarios de la etapa | F29: =+'Mano Obra'!O12 -> 757152.8538 | G29: =+'Mano Obra'!O30 -> 757152.8538
B30: Unidades de mano de obra directa | F30: =+Inicio!T88 -> 0.2 | G30: =+'Mano Obra'!J30 -> 0.2
B32: Otros costos
B33: Servicios públicos
B34: Energía Eléctrica | F34: =+Servicios!F22 -> 120000
B35: Agua | F35: =+Servicios!F46 -> 66960
B36: Recolección de residuos peligrosos | F36: =+Inicio!M114/5 -> 140000
B37: Limpieza y desinfección
B38: Elementos (baldes, escobas, etc) | F38: =+Limpieza!M22 -> 40000
B39: Productos (jabón, desinfectantes, etc.) | F39: =+Limpieza!F22 -> 20000
B40: Otros costos | F40: =+Inicio!M118/5 -> 200000
B46: Costo total de la etapa | F46: =+F47*F15 -> 73368047.89 | G46: =+G47*G15 -> 73368047.89
B47: Costo hembra de reemplazo | F47: =+F50+F54+F60+F64+F68+F75+F82+F91+F95+F104 -> 2789514.321 | G47: =+G50+G54+G60+G64+G68+G75+G82+G91+G95+G104 -> 2789514.321 | M47: Vacunas | N47: Medicamentos
F48: Caso inicial | G48: Proyección | L48: Reemplazos | M48: 0.4 | N48: 0.2
A49: 1 | B49: AMORTIZACIÓN TOTAL | F49: =+F51*F23+F53*F23 -> 3890000 | G49: =+G51*G23+G53*G23 -> 3890000 | L49: Gestantes | M49: 0.3 | N49: 0.1
B50: Valor amortizar | F50: =+(F16-F22) -> 450000 | G50: =+(F17-G22) -> 450000 | L50: Lactancia | M50: 0.1 | N50: 0.3
B51: Valor a amortizar diario hembra | F51: =+F50/F23 -> 3750 | G51: =+G50/G23 -> 3750 | H51: =+F51*$F$23 -> 450000 | I51: =+G51*$G$23 -> 450000 | L51: Precebo | M51: 0.2 | N51: 0.4
B52: Valor a amortizar - Macho reproductor | F52: =+(F19*F18)-(F21*F18) -> 25800000 | G52: =+(G19*G18)-(G21*G18) -> 25800000 | M52: =+SUM(M48:M51) -> 1 | N52: =+SUM(N48:N51) -> 1
B53: Valor a amortizar diario | F53: =+F52/(360*F25) -> 28666.66667 | G53: =+G52/(360*G25) -> 28666.66667
A54: 2 | B54: INVENTARIO EQUIPOS E INSTALACIONES | F54: =+F55+F58 -> 134510.9167 | G54: =+G55+G58 -> 134510.9167
B55: Instalaciones y equipo | F55: =+F57*F23 -> 129188 | G55: =+G57*G23 -> 129188
B56: Valor de arrendamiento mensual por cerda | F56: =+N14 -> 32297 | G56: =+F56 -> 32297
B57: Valor a amortizar diario por hembra | F57: =+F56/30 -> 1076.566667 | G57: =+G56/30 -> 1076.566667
B58: Reparaciones | F58: =+F59*F23 -> 5322.916667 | G58: =+G59*G23 -> 5322.916667
B59: Gastos diarios reparaciones por hembra | F59: =+(O20/30)/F15 -> 44.35763889 | G59: =+(O20/30)/G15 -> 44.35763889
A60: 3 | B60: VACUNAS | F60: =+F63*F23 -> 146000 | G60: =+G63*G23 -> 146000
B61: Valor de vacunas de la etapa | F61: =+N27 -> 960000 | G61: =+F61 -> 960000
B62: Valor vacunas por cerda | F62: =+$F$61/$F$15 -> 36500 | G62: =+$G$61/$G$15 -> 36500 | K62: Días vida útil machos | M62: =+F25*365 -> 912.5 | N62: =+G25*365 -> 912.5
B63: Valor vacunas por cerda/día | F63: =+$F$62/30 -> 1216.666667 | G63: =+$G$62/30 -> 1216.666667 | K63: Consumo diario por macho | M63: =+Inicio!K79 -> 2 | N63: =+M63 -> 2
A64: 4 | B64: MEDICAMENTOS | F64: =+F67*F23 -> 24333.33333 | G64: =+G67*G23 -> 24333.33333 | K64: Valor por kilo | M64: =+Inicio!P79 -> 1350 | N64: =+M64 -> 1350
B65: Valor de medicamentos de la etapa | F65: =+N28 -> 160000 | G65: =+F65 -> 160000
B66: Valor medicamentos por cerda | F66: =+$F$65/$F$15 -> 6083.333333 | G66: =+$G$65/$G$15 -> 6083.333333
B67: Valor medicamentos por cerda/día | F67: =+$F$66/30 -> 202.7777778 | G67: =+$G$66/30 -> 202.7777778
A68: 5 | B68: ALIMENTACIÓN | F68: =+F70+F74 -> 648000 | G68: =+G70+G74 -> 648000
B69: Consumo total alimento por hembra (kg) | F69: =+N22*N23 -> 240 | G69: =+O22*O23 -> 240
B70: Valor alimento total por hembra | F70: =+F69*N24 -> 324000 | G70: =+G69*O24 -> 324000
B71: Consumo total alimento por macho | F71: =+M63*M62 -> 1825 | G71: =+N63*N62 -> 1825
B72: Valor alimento total por macho | F72: =+F71*M64 -> 2463750 | G72: =+G71*N64 -> 2463750
B73: Valor alimento diario | F73: =+F72/M62 -> 2700 | G73: =+G72/N62 -> 2700
B74: Valor alimento total por macho | F74: =+F73*F23 -> 324000 | G74: =+G73*G23 -> 324000
A75: 6 | B75: SALARIO | F75: =IF(F18>0,(F78+F81),F78) -> 1297403.237 | G75: =IF(G18>0,(G78+G81),G78) -> 1297403.237
B76: Salario reemplazos | F76: =+F29 -> 757152.8538 | G76: =+G29 -> 757152.8538
B77: Salario diario por hembra de reemplazo | F77: =+(F76/F15)/30 -> 959.5860821 | G77: =+(G76/G15)/30 -> 959.5860821
B78: Salario reemplazos etapa | F78: =+(F77*F23) -> 115150.3299 | G78: =+(G77*G23) -> 115150.3299
B79: Salario machos | F79: =+'Mano Obra'!O13 -> 591126.4538 | G79: =+'Mano Obra'!O31 -> 591126.4538
B80: Salario diario por macho | F80: =+F79/F18/30 -> 9852.107564 | G80: =+G79/G18/30 -> 9852.107564
B81: salario machos etapa | F81: =+(F80*F23) -> 1182252.908 | G81: =+(G80*G23) -> 1182252.908
A82: 7 | B82: SERVICIOS PÚBLICOS | F82: =+F83+F87 -> 28433.5 | G82: =+G83+G87 -> 28433.5
B83: Energía Eléctrica | F83: =+F86*F23 -> 18250 | G83: =+G86*G23 -> 18250
B84: Energía eléctrica reemplazos | F84: =+F34 -> 120000 | G84: =+F84 -> 120000
B85: Energía eléctrica por hembra de reemplazo | F85: =+F84/F15 -> 4562.5 | G85: =+G84/G15 -> 4562.5
B86: Energía eléctrica diario por hembra de reemplazo | F86: =+F85/30 -> 152.0833333 | G86: =+G85/30 -> 152.0833333
B87: Acueducto | F87: =+F90*F23 -> 10183.5 | G87: =+G90*G23 -> 10183.5
B88: Acueducto reemplazos | F88: =+F35 -> 66960 | G88: =+F88 -> 66960
B89: Acueducto por hembra de reemplazo | F89: =+F88/F15 -> 2545.875 | G89: =+G88/G15 -> 2545.875
B90: Acueducto diario por hembra de reemplazo | F90: =+F89/30 -> 84.8625 | G90: =+G89/30 -> 84.8625
A91: 8 | B91: RECOLECCIÓN RESIDUOS PELIGROSOS | F91: =+F94*F23 -> 21291.66667 | G91: =+G94*G23 -> 21291.66667
B92: Recolección residuos peligrosos reemplazos | F92: =+F36 -> 140000 | G92: =+F92 -> 140000
B93: Recolección residuos peligrosos por hembra de reemplazo | F93: =+F92/F15 -> 5322.916667 | G93: =+G92/G15 -> 5322.916667
B94: Recolección residuos peligrosos diario por hembra de reemplazo | F94: =+F93/30 -> 177.4305556 | G94: =+G93/30 -> 177.4305556
A95: 9 | B95: LIMPIEZA Y DESINFECCIÓN | F95: =+F96+F100 -> 9125 | G95: =+G96+G100 -> 9125
B96: Productos | F96: =+F99*F23 -> 3041.666667 | G96: =+G99*G23 -> 3041.666667
B97: Productos reemplazos | F97: =+F39 -> 20000 | G97: =+F97 -> 20000
B98: Productos por hembra de reemplazo | F98: =+F97/F15 -> 760.4166667 | G98: =+G97/G15 -> 760.4166667
B99: Productos diario por hembra de reemplazo | F99: =+F98/30 -> 25.34722222 | G99: =+G98/30 -> 25.34722222
B100: Elementos usados | F100: =+F103*F23 -> 6083.333333 | G100: =+G103*G23 -> 6083.333333
B101: Elementos usados reemplazos | F101: =+F38 -> 40000 | G101: =+F101 -> 40000
B102: Elementos usados por hembra de reemplazo | F102: =+F101/F15 -> 1520.833333 | G102: =+G101/G15 -> 1520.833333
B103: Elementos usados diario por hembra de reemplazo | F103: =+F102/30 -> 50.69444444 | G103: =+G102/30 -> 50.69444444
A104: 10 | B104: OTROS COSTOS | F104: =+F107*F23 -> 30416.66667 | G104: =+G107*G23 -> 30416.66667
B105: Otros costos en reemplazos | F105: =+F40 -> 200000 | G105: =+F105 -> 200000
B106: Otros costos por hembra de reemplazo | F106: =+F105/$F$15 -> 7604.166667 | G106: =+G105/$G$15 -> 7604.166667
B107: Otros costos diario por hembra | F107: =+F106/30 -> 253.4722222 | G107: =+G106/30 -> 253.4722222
B110: Partos esperados por hembra | E110: =+Inicio!N146 -> 6.33240805
B111: Total Nacidos | E111: =+Inicio!L28 -> 12.4 | G111: por parto
B112: Nacidos vivos | E112: =+Inicio!AD36 -> 11.656 | G112: =+F52/F113 -> 40742.79452
B113: Dosis efectivas | E113: =+Inicio!N14/Reemplazos!F18 -> 100 | F113: =+E113*E110 -> 633.240805
B114: COSTOS | E114: Parto | F114: Nacidos | G114: Nacidos vivos
B116: =+B49 -> AMORTIZACIÓN TOTAL | E116: =+IF(F18=0,(H51/E110),(H51/E110)+(F52/F113)) -> 111805.8082 | F116: =+E116/$E$111 -> 9016.597437 | G116: =+E116/$E$112 -> 9592.124933
B117: =+B54 -> INVENTARIO EQUIPOS E INSTALACIONES | E117: =+F54/E110 -> 21241.66914 | F117: =+E117/$E$111 -> 1713.037834 | G117: =+E117/$E$112 -> 1822.380674 | J117: cerdas por macho | L117: =+Inicio!N14/Reemplazos!F18 -> 100
B118: =+B60 -> VACUNAS | E118: =+F60/E110 -> 23056 | F118: 1859.354839 | G118: 1978.037062 | J118: partos por macho | L118: =+L117*E110 -> 633.240805
B119: =+B64 -> MEDICAMENTOS | E119: =+F64/E110 -> 3842.666667 | F119: 309.8924731 | G119: 329.6728437 | J119: partos en etapa | L119: =+(L118/(F24*365))*F23 -> 83.27550312
B120: =+B68 -> ALIMENTACIÓN | E120: =IF(F18=0,(F70/E110),(F70/E110)+(F74/L119)) -> 55056.06986 | F120: 4440.005634 | G120: 4723.410249
B121: =+B75 -> SALARIO | E121: =+IF(F18=0,(F78/E110),(F78/E110+F81/L119)) -> 32381.1747 | F121: 2611.385057 | G121: 2778.069209
B122: =+B82 -> SERVICIOS PÚBLICOS | E122: =+F82/E110 -> 4490.156 | F122: 362.1093548 | G122: 385.2227179
B123: =+B91 -> RECOLECCIÓN RESIDUOS PELIGROSOS | E123: =+F91/E110 -> 3362.333333 | F123: 271.155914 | G123: 288.4637383
B124: =+B95 -> LIMPIEZA Y DESINFECCIÓN | E124: =+F95/E110 -> 1441 | F124: 116.2096774 | G124: 123.6273164
B125: =+B104 -> OTROS COSTOS | E125: =+F104/E110 -> 4803.333333 | F125: 387.3655914 | G125: 412.0910547
E127: =+SUM(E116:E125) -> 261480.2113 | F127: =+SUM(F116:F125) -> 21087.11381 | G127: =+SUM(G116:G125) -> 22433.0998
F128: =+F127*E111 -> 261480.2113 | G128: =+G127*E112 -> 261480.2113
E129: Mortalidad y Momificados | G129: =+G127-F127 -> 1345.985988
B132: Proyección
B133: Partos esperados por hembra | E133: =+Inicio!AZ146 -> 6.33240805
B134: Total Nacidos | E134: =+Inicio!AX28 -> 12.4
B135: Nacidos vivos | E135: =+Inicio!BO36 -> 11.656
E136: =+Inicio!AZ14/Reemplazos!G18 -> 100 | F136: =+E136*E133 -> 633.240805
B137: COSTOS | E137: Parto | F137: Nacidos | G137: Nacidos vivos
B139: =+B116 -> AMORTIZACIÓN TOTAL | E139: =+IF(G18=0,(I51/E133),(I51/E133)+(G52/F136)) -> 111805.8082 | F139: =+E139/$E$134 -> 9016.597437 | G139: =+E139/$E$135 -> 9592.124933
B140: INVENTARIO EQUIPOS E INSTALACIONES | E140: =+G54/E133 -> 21241.66914 | F140: =+E140/$E$134 -> 1713.037834 | G140: =+E140/$E$135 -> 1822.380674 | J140: cerdas por macho | L140: =Inicio!AZ14/Reemplazos!G18 -> 100
B141: VACUNAS | E141: =+G60/E133 -> 23056 | F141: 1859.354839 | G141: 1978.037062 | J141: partos por macho | L141: =+L140*E133 -> 633.240805
B142: MEDICAMENTOS | E142: =+G64/E133 -> 3842.666667 | F142: 309.8924731 | G142: 329.6728437 | J142: partos en etapa | L142: =+(L141/(G25*365))*G23 -> 83.27550312
B143: ALIMENTACIÓN | E143: =+IF(G18=0,(G70/E133),(G70/E133+G74/L142)) -> 55056.06986 | F143: 4440.005634 | G143: 4723.410249
B144: SALARIO | E144: =+IF(G18=0,(G78/E133),(G78/E133+G81/L142)) -> 32381.1747 | F144: 2611.385057 | G144: 2778.069209
B145: SERVICIOS PÚBLICOS | E145: =+G82/E133 -> 4490.156 | F145: 362.1093548 | G145: 385.2227179
B146: RECOLECCIÓN RESIDUOS PELIGROSOS | E146: =+G91/E133 -> 3362.333333 | F146: 271.155914 | G146: 288.4637383
B147: LIMPIEZA Y DESINFECCIÓN | E147: =+G95/E133 -> 1441 | F147: 116.2096774 | G147: 123.6273164
B148: OTROS COSTOS | E148: =+G104/E133 -> 4803.333333 | F148: 387.3655914 | G148: 412.0910547
E150: =+SUM(E139:E148) -> 261480.2113 | F150: =+SUM(F139:F148) -> 21087.11381 | G150: =+SUM(G139:G148) -> 22433.0998
F151: =+F150*E134 -> 261480.2113 | G151: =+G150*E135 -> 261480.2113
G152: =+G150-F150 -> 1345.985988

Sheet Gestación
A2: SIMULADOR COSTOS PRODUCCIÓN
A4: GESTACIÓN
B10: Costo total de la gestación (por hembra) | F10: =+F49 -> 687871.0071
B12: Costo del lechón nacido vivo | F12: =+G119+Reemplazos!G127 -> 81447.42779
B16: Datos productivos de la etapa | G16: proy. | J16: Instalaciones y equipo
B17: Número de hembras gestantes | F17: =+Inicio!L24 -> 170 | G17: =+Inicio!AX24 -> 170 | J17: Valor arrendamiento por cerda | N17: =+IF(P17=0,O17,P17) -> 32297 | O17: =+O18+O19 -> 32296.09333 | P17: =+Inicio!M100 -> 32297
B18: Dias de gestación | F18: 114 | G18: =+F18 -> 114 | J18: Valor metro cuadrado (obra civil) | N18: 451420 | O18: =+(N18/(N20*12)) -> 3761.833333
B19: Tasa de parición | F19: =+Inicio!L26 -> 0.9 | G19: =+Inicio!AX26 -> 0.9 | J19: Valor equipos de la etapa por metro cuadrado | N19: 20677 | O19: =+N19*O22 -> 28534.26
B20: Tasa de repetición | F20: =1-F19 -> 0.1 | G20: =1-G19 -> 0.1 | J20: Depreciación instalaciones | N20: 10
B21: Promedio días desde el 1er servicio a cubrición fértil | F21: 21 | G21: =+F21 -> 21 | J21: Depreciación equipo | N21: 5 | P21: =+Inicio!M102 -> 35000
B22: Partos cerda año | F22: =+Inicio!N147 -> 2.53296322 | G22: =+Inicio!AZ147 -> 2.53296322 | J22: Gastos mensuales en reparaciones | N22: 35000 | O22: =2.3*0.6 -> 1.38
B23: Dias No Productivos por ciclo | F23: =+Inicio!AD51/Gestación!F22 -> 9.1 | G23: =+Inicio!BO51/Gestación!G22 -> 9.1 | O23: =+IF(P21=0,N22,P21) -> 35000
B24: Total días ciclo cerda (incluye DNP) | F24: =+F18+F23 -> 123.1 | G24: =+G18+Gestación!G23 -> 123.1 | J24: Inseminación artificial
J25: Tipo inseminación artificial | N25: Cervical
B26: Mano de obra | J26: Número dosis por hembra reproductora | N26: 2
B27: Cerdos por persona | F27: =+Inicio!N90 -> 70.83333333 | G27: =+'Mano Obra'!F32 -> 70.83333333 | J27: Costo por dosis* | N27: 15000
B28: Salarios de la etapa | F28: =+'Mano Obra'!O14 -> 4838480.35 | G28: =+'Mano Obra'!O32 -> 4838480.35 | J28: Costo del catéter | N28: 800
B29: Unidades de mano de obra directa | F29: =+'Mano Obra'!J14 -> 2.4 | G29: =+'Mano Obra'!J32 -> 2.4 | J29: *El costo por dosis hace referencia al costo de recolección del semen, equipo de laboratorio, insumos, instalaciones, vacunas y medicamentos. Pero si usted compra la dósis escriba el valor completo.
B32: Otros costos | J32: Alimento
B33: Servicios públicos | J33: Consumo diario (kg) | N33: =+Inicio!K80 -> 2.53 | O33: =+N33 -> 2.53
B34: Energía Eléctrica | F34: =+Servicios!F23+Servicios!F24 -> 792000 | J34: Duración consumo alimento (días) | N34: =+F18+F23 -> 123.1 | O34: =+G24 -> 123.1
B35: Agua | F35: =+Servicios!F47+Servicios!F48 -> 401760 | J35: Valor alimento hembra por kilogramo ($) | N35: =+Inicio!P80 -> 1100 | O35: =+N35 -> 1100
B36: Recolección de residuos peligrosos | F36: =+Servicios!M47+Servicios!M48 -> 413000
B37: Limpieza y desinfección | J37: Vacunas y medicamentos
B38: Elementos (baldes, escobas, etc) | F38: =Limpieza!M23+Limpieza!M24 -> 120000 | J38: Total vacunas y consumibles | N38: =+Inicio!$M$109*Gestación!L50 -> 720000
B39: Productos (jabón, desinfectantes, etc.) | F39: =+Limpieza!F23+Limpieza!F24 -> 60000 | J39: Total medicamentos y consumibles | N39: =+Inicio!$M$108*Gestación!M50 -> 80000
B40: Otros costos | F40: =+Inicio!M118/5 -> 200000
B48: Costo hembra gestación | F48: =+F49*F17 -> 116938071.2 | G48: =+G49*G17 -> 116938071.2
B49: Costo hembra gestación | F49: =+F51+F57+F61+F65+F68+F71+F74+F83+F87+F96 -> 687871.0071 | G49: =+G51+G57+G61+G65+G68+G71+G74+G83+G87+G96 -> 687871.0071 | K49: Reemplazos | L49: 0.4 | M49: 0.2
F50: Caso inicial | G50: Caso inicial | K50: Gestantes | L50: 0.3 | M50: 0.1
B51: INVENTARIO EQUIPOS E INSTALACIONES | F51: =+F52+F55 -> 133370.1606 | G51: =+G52+G55 -> 133370.1606 | K51: Lactancia | L51: 0.1 | M51: 0.3
B52: Instalaciones y equipo | F52: =+F54*F24 -> 132525.3567 | G52: =+G54*G24 -> 132525.3567 | K52: Precebo | L52: 0.2 | M52: 0.4
B53: Valor de arrendamiento mensual por cerda | F53: =+N17 -> 32297 | G53: =+F53 -> 32297 | L53: =+SUM(L49:L52) -> 1 | M53: =+SUM(M49:M52) -> 1
B54: Valor a amortizar diario por hembra | F54: =+F53/30 -> 1076.566667 | G54: =+G53/30 -> 1076.566667
B55: Reparaciones | F55: =+F56*F24 -> 844.8039216 | G55: =+G56*G24 -> 844.8039216
B56: Gastos diarios reparaciones por hembra | F56: =(O23/30)/F17 -> 6.862745098 | G56: =(O23/30)/G17 -> 6.862745098
B57: VACUNAS | F57: =+F60*F18 -> 16094.11765 | G57: =+G60*G18 -> 16094.11765
B58: Valor de vacunas de la etapa | F58: =+N38 -> 720000 | G58: =+F58 -> 720000
B59: Valor vacunas por cerda | F59: =+F58/F17 -> 4235.294118 | G59: =+G58/G17 -> 4235.294118
B60: Valor vacunas por cerda/día | F60: =+F59/30 -> 141.1764706 | G60: =+G59/30 -> 141.1764706
B61: MEDICAMENTOS | F61: =+F64*F18 -> 178.8235294 | G61: =+G64*G18 -> 178.8235294
B62: Valor de medicamentos de la etapa | F62: =+N39*M50 -> 8000 | G62: =+F62 -> 8000
B63: Valor medicamentos por cerda | F63: =+F62/F17 -> 47.05882353 | G63: =+G62/G17 -> 47.05882353
B64: Valor medicamentos por cerda/día | F64: =+F63/30 -> 1.568627451 | G64: =+G63/30 -> 1.568627451
B65: INSEMINACIÓN | F65: =+F66+F67 -> 34760 | G65: =+G66+G67 -> 34760
B66: Costo de inseminación por hembra | F66: =+(N27*N26)+(N28*N26) -> 31600 | G66: =+(N27*N26)+(N28*N26) -> 31600
B67: Repeticiones | F67: =+(($N$27+$N$28)*$F$20)*$N$26 -> 3160 | G67: =+(($N$27+$N$28)*$F$20)*$N$26 -> 3160
B68: ALIMENTACIÓN | F68: =+F70 -> 342587.3 | G68: =+G70 -> 342587.3
B69: Consumo total alimento por hembra (kg) | F69: =+N33*N34 -> 311.443 | G69: =+O33*O34 -> 311.443
B70: Valor alimento total por hembra | F70: =+F69*N35 -> 342587.3 | G70: =+G69*O35 -> 342587.3
B71: SALARIO | F71: =+F73*F24 -> 116787.6335 | G71: =+G73*G24 -> 116787.6335
B72: Salario por hembra | F72: =+F28/F17 -> 28461.64912 | G72: =+G28/G17 -> 28461.64912
B73: Salario diario por hembra | F73: =+(F72/30) -> 948.7216372 | G73: =+(G72/30) -> 948.7216372
B74: SERVICIOS PÚBLICOS | F74: =+F75+F79 -> 28814.08941 | G74: =+G75+G79 -> 28814.08941
B75: Energía Eléctrica | F75: =+F78*F24 -> 19116.70588 | G75: =+G78*G24 -> 19116.70588
B76: Energía eléctrica | F76: =+F34 -> 792000 | G76: =+F76 -> 792000
B77: Energía eléctrica por hembra | F77: =+F76/F17 -> 4658.823529 | G77: =+G76/G17 -> 4658.823529
B78: Energía eléctrica diario por hembra | F78: =+F77/30 -> 155.2941176 | G78: =+G77/30 -> 155.2941176
B79: Acueducto | F79: =+F82*F24 -> 9697.383529 | G79: =+G82*G24 -> 9697.383529
B80: Acueducto | F80: =+F35 -> 401760 | G80: =+F80 -> 401760
B81: Acueducto por hembra | F81: =+F80/F17 -> 2363.294118 | G81: =+G80/G17 -> 2363.294118
B82: Acueducto diario por hembra | F82: =+F81/30 -> 78.77647059 | G82: =+G81/30 -> 78.77647059
B83: RECOLECCIÓN RESIDUOS PELIGROSOS | F83: =+F86*F24 -> 9968.686275 | G83: =+G86*G24 -> 9968.686275
B84: Recolección residuos peligrosos | F84: =+F36 -> 413000 | G84: =+F84 -> 413000
B85: Recolección residuos peligrosos por hembra | F85: =+F84/F17 -> 2429.411765 | G85: =+G84/G17 -> 2429.411765
B86: Recolección residuos peligrosos diario por hembra | F86: =+F85/30 -> 80.98039216 | G86: =+G85/30 -> 80.98039216
B87: LIMPIEZA Y DESINFECCIÓN | F87: =+F88+F92 -> 4344.705882 | G87: =+G88+G92 -> 4344.705882
B88: Productos | F88: =+F91*F24 -> 1448.235294 | G88: =+G91*G24 -> 1448.235294
B89: Productos | F89: =+F39 -> 60000 | G89: =+F89 -> 60000
B90: Productos por hembra | F90: =+F89/F17 -> 352.9411765 | G90: =+G89/G17 -> 352.9411765
B91: Productos diario por hembra | F91: =+F90/30 -> 11.76470588 | G91: =+G90/30 -> 11.76470588
B92: Elementos usados | F92: =+F95*F24 -> 2896.470588 | G92: =+G95*G24 -> 2896.470588
B93: Elementos usados | F93: =+F38 -> 120000 | G93: =+F93 -> 120000
B94: Elementos usados por hembra | F94: =+F93/F17 -> 705.8823529 | G94: =+G93/G17 -> 705.8823529
B95: Elementos usados diario por hembra | F95: =+F94/30 -> 23.52941176 | G95: =+G94/30 -> 23.52941176
B96: OTROS COSTOS | F96: =+F99*F24 -> 965.4901961 | G96: =+G99*G24 -> 965.4901961
B97: Otros costos | F97: =+F40/5 -> 40000 | G97: =+F97 -> 40000
B98: Otros costos por hembra | F98: =+F97/F17 -> 235.2941176 | G98: =+G97/G17 -> 235.2941176
B99: Otros costos diario por hembra | F99: =+F98/30 -> 7.843137255 | G99: =+G98/30 -> 7.843137255
B102: Partos esperados por hembra | E102: =+Inicio!N146 -> 6.33240805
B103: Total Nacidos | E103: =+Inicio!L28 -> 12.4
B104: Nacidos vivos | E104: =+Inicio!AD36 -> 11.656
B106: COSTOS | E106: Parto | F106: Nacidos | G106: Nacidos vivos
B108: =+B51 -> INVENTARIO EQUIPOS E INSTALACIONES | E108: =+F51 -> 133370.1606 | F108: =+E108/$E$103 -> 10755.65811 | G108: =+E108/$E$104 -> 11442.18948
B109: =+B57 -> VACUNAS | E109: =+F57 -> 16094.11765 | F109: =+E109/$E$103 -> 1297.912713 | G109: =+E109/$E$104 -> 1380.758206
B110: =+B61 -> MEDICAMENTOS | E110: =+F61 -> 178.8235294 | F110: 14.42125237 | G110: 15.34175784
B111: =+B65 -> INSEMINACIÓN | E111: =+F65 -> 34760 | F111: 2803.225806 | G111: 2982.155113
B112: =+B68 -> ALIMENTACIÓN | E112: =+F68 -> 342587.3 | F112: 27628.00806 | G112: 29391.49794
B113: =+B71 -> SALARIO | E113: =+F71 -> 116787.6335 | F113: =+E113/$E$103 -> 9418.357544 | G113: 10019.5293
B114: =+B74 -> SERVICIOS PÚBLICOS | E114: =+F74 -> 28814.08941 | F114: 2323.716888 | G114: 2472.039243
B115: =+B83 -> RECOLECCIÓN RESIDUOS PELIGROSOS | E115: =+F83 -> 9968.686275 | F115: 803.9263125 | G115: 855.2407579
B116: =+B87 -> LIMPIEZA Y DESINFECCIÓN | E116: =+F87 -> 4344.705882 | F116: 350.3795066 | G116: 372.744156
B117: =+B96 -> OTROS COSTOS | E117: =+F96 -> 965.4901961 | F117: 77.86211259 | G117: 82.83203467
E119: =+SUM(E108:E117) -> 687871.0071 | F119: =+SUM(F108:F117) -> 55473.46831 | G119: =+SUM(G108:G117) -> 59014.32799
F120: =+F119*E103 -> 687871.0071 | G120: =+G119*E104 -> 687871.0071
B124: Proyección
B125: Partos esperados por hembra | E125: =+Reemplazos!E133 -> 6.33240805
B126: Total Nacidos | E126: =+Reemplazos!E134 -> 12.4
B127: Nacidos vivos | E127: =+Reemplazos!E135 -> 11.656
B129: COSTOS | E129: Parto | F129: Nacidos | G129: Nacidos vivos
B131: =+B108 -> INVENTARIO EQUIPOS E INSTALACIONES | E131: =+G51 -> 133370.1606 | F131: =+E131/$E$126 -> 10755.65811 | G131: =+E131/$E$127 -> 11442.18948
B132: =+B109 -> VACUNAS | E132: =+G57 -> 16094.11765 | F132: 1297.912713 | G132: 1380.758206
B133: MEDICAMENTOS | E133: =+G61 -> 178.8235294 | F133: 14.42125237 | G133: 15.34175784
B134: INSEMINACIÓN | E134: =+G65 -> 34760 | F134: 2803.225806 | G134: 2982.155113
B135: ALIMENTACIÓN | E135: =+G68 -> 342587.3 | F135: 27628.00806 | G135: 29391.49794
B136: SALARIO | E136: =+G71 -> 116787.6335 | F136: 9418.357544 | G136: 10019.5293
B137: SERVICIOS PÚBLICOS | E137: =+G74 -> 28814.08941 | F137: 2323.716888 | G137: 2472.039243
B138: RECOLECCIÓN RESIDUOS PELIGROSOS | E138: =+G83 -> 9968.686275 | F138: 803.9263125 | G138: 855.2407579
B139: LIMPIEZA Y DESINFECCIÓN | E139: =+G87 -> 4344.705882 | F139: 350.3795066 | G139: 372.744156
B140: OTROS COSTOS | E140: =+G96 -> 965.4901961 | F140: 77.86211259 | G140: 82.83203467
E142: =+SUM(E131:E140) -> 687871.0071 | F142: =+SUM(F131:F140) -> 55473.46831 | G142: =+SUM(G131:G140) -> 59014.32799
F143: =+F142*E126 -> 687871.0071 | G143: =+G142*E127 -> 687871.0071

Sheet Lactancia
A2: SIMULADOR COSTOS PRODUCCIÓN
A4: LACTANCIA
B9: Costo total de la lactancia(por hembra) | F9: =+F44 -> 359478.4192
B11: ="Costo del lechón al destete ("&$F$19&" kilos)" -> Costo del lechón al destete (6 kilos) | F11: =+G137+Gestación!F12 -> 115153.0377
B15: Datos productivos de la etapa | G15: proy. | J15: Instalaciones y equipo
B16: Número de hembras lactantes | F16: =+Inicio!L33 -> 30 | G16: =+Inicio!AX33 -> 30 | J16: Valor arrendamiento por cerda | N16: =+IF(P16=0,O16,P16) -> 32297 | O16: =+O17+O18 -> 32296.09333 | P16: =+Inicio!M100 -> 32297
B17: Número de días en lactancia | F17: =+Inicio!L34 -> 21 | G17: =+Inicio!AX34 -> 21 | J17: Valor metro cuadrado (obra civil) | N17: 451420 | O17: =+(N17/(N19*12)) -> 3761.833333
B18: Mortalidad predestete | F18: =+Inicio!L35 -> 0.085 | G18: =+Inicio!AX35 -> 0.085 | J18: Valor equipos de la etapa por metro cuadrado | N18: 20677 | O18: =+N18*O21 -> 28534.26
B19: Peso del lechón al destete | F19: =+Inicio!L36 -> 6 | G19: =+Inicio!AX36 -> 6 | J19: Depreciación instalaciones | N19: 10
J20: Depreciación equipo | N20: 5 | P20: =+Inicio!M102 -> 35000
J21: Gastos mensuales en reparaciones | N21: 35000 | O21: =2.3*0.6 -> 1.38
O22: =+IF(P20=0,N21,P20) -> 35000
B23: Mano de obra | J23: Alimento
B24: Cerdos por persona | F24: =+'Mano Obra'!F15:G15 -> 30 | G24: =+'Mano Obra'!F33 -> 30 | J24: Consumo diario (kg) | N24: =+Inicio!K81 -> 6.5 | O24: =+N24 -> 6.5
B25: Salarios de la etapa | F25: =+'Mano Obra'!O15 -> 3266707.967 | G25: =+'Mano Obra'!O33 -> 3266707.967 | J25: Duración consumo alimento (días) | N25: =+F17 -> 21 | O25: =+F17 -> 21
B26: Unidades de mano de obra directa | F26: =+'Mano Obra'!J15 -> 1 | G26: =+'Mano Obra'!J33 -> 1 | J26: Valor alimento hembra por kilogramo ($) | N26: =+Inicio!P81 -> 1400 | O26: =+N26 -> 1400
B28: Otros costos | J28: Vacunas y medicamentos
B29: Servicios públicos | J29: Total vacunas y consumibles | N29: =+Inicio!$M$109*L46 -> 240000
B30: Energía Eléctrica | F30: =+Servicios!F25 -> 600000 | J30: Total medicamentos y consumibles | N30: =+Inicio!$M$108*M46 -> 240000
B31: Agua | F31: =+Servicios!F49 -> 111600
B32: Recolección de residuos peligrosos | F32: =+Servicios!M49 -> 119000
B33: Gas | F33: =+Servicios!M22 -> 300000
B34: Limpieza y desinfección
B35: Elementos (baldes, escobas, etc) | F35: =+Limpieza!M25 -> 80000
B36: Productos (jabón, desinfectantes, etc.) | F36: =+Limpieza!F25 -> 40000
B37: Otros costos | F37: =+Inicio!$M$118/5 -> 200000
B43: Costo total de la etapa | F43: =+F44*F16 -> 10784352.58 | G43: =+G44*G16 -> 10784352.58 | L43: Vacunas | M43: Medicamentos
B44: Costo hembra de Lactante | F44: =+F46+F52+F56+F60+F63+F66+F79+F83+F92 -> 359478.4192 | G44: =+G46+G52+G56+G60+G63+G66+G79+G83+G92 -> 359478.4192 | K44: Reemplazos | L44: 0.4 | M44: 0.2
F45: Caso inicial | G45: Caso inicial | K45: Gestantes | L45: 0.3 | M45: 0.1
B46: INVENTARIO EQUIPOS E INSTALACIONES | F46: =+F47+F50 -> 47107.9 | G46: =+G47+G50 -> 47107.9 | K46: Lactancia | L46: 0.1 | M46: 0.3
B47: Instalaciones y equipo | F47: =+F49*F17 -> 22607.9 | G47: =+G49*G17 -> 22607.9 | K47: Precebo | L47: 0.2 | M47: 0.4
B48: Valor de arrendamiento mensual por cerda | F48: =+N16 -> 32297 | G48: =+F48 -> 32297 | L48: =+SUM(L44:L47) -> 1 | M48: =+SUM(M44:M47) -> 1
B49: Valor a amortizar diario por hembra | F49: =+F48/30 -> 1076.566667 | G49: =+G48/30 -> 1076.566667
B50: Reparaciones | F50: =+F51*F17 -> 24500 | G50: =+G51*G17 -> 24500
B51: Gastos diarios reparaciones por hembra | F51: =+(O22/F16) -> 1166.666667 | G51: =+(O22/G16) -> 1166.666667
B52: VACUNAS | F52: =+F55*F17 -> 5600 | G52: =+G55*G17 -> 5600
B53: Valor de vacunas de la etapa | F53: =+N29 -> 240000 | G53: =+F53 -> 240000
B54: Valor vacunas por cerda | F54: =+F53/F16 -> 8000 | G54: =+G53/G16 -> 8000
B55: Valor vacunas por cerda/día | F55: =+F54/30 -> 266.6666667 | G55: =+G54/30 -> 266.6666667
B56: MEDICAMENTOS | F56: =+F59*F17 -> 5600 | G56: =+G59*G17 -> 5600
B57: Valor de medicamentos de la etapa | F57: =+N30 -> 240000 | G57: =+F57 -> 240000
B58: Valor medicamentos por cerda | F58: =+F57/F16 -> 8000 | G58: =+G57/G16 -> 8000
B59: Valor medicamentos por cerda/día | F59: =+F58/30 -> 266.6666667 | G59: =+G58/30 -> 266.6666667
B60: ALIMENTACIÓN | F60: =+F62 -> 191100 | G60: =+G62 -> 191100
B61: Consumo total alimento por hembra (kg) | F61: =+N24*N25 -> 136.5 | G61: =+O24*O25 -> 136.5
B62: Valor alimento total por hembra | F62: =+F61*N26 -> 191100 | G62: =+G61*O26 -> 191100
B63: SALARIO | F63: =+F65*F17 -> 76223.18589 | G63: =+G65*G17 -> 76223.18589
B64: Salario por hembra | F64: =+F25/F16 -> 108890.2656 | G64: =+G25/G16 -> 108890.2656
B65: Salario diario por hembra | F65: =+F64/30 -> 3629.675519 | G65: =+G64/30 -> 3629.675519
B66: SERVICIOS PÚBLICOS | F66: =+F67+F71+F75 -> 23604 | G66: =+G67+G71+G75 -> 23604
B67: Energía Eléctrica | F67: =+F70*F17 -> 14000 | G67: =+G70*G17 -> 14000
B68: Energía eléctrica | F68: =+F30 -> 600000 | G68: =+F68 -> 600000
B69: Energía eléctrica por hembra | F69: =+F68/F16 -> 20000 | G69: =+G68/G16 -> 20000
B70: Energía eléctrica diario por hembra | F70: =+F69/30 -> 666.6666667 | G70: =+G69/30 -> 666.6666667
B71: Acueducto | F71: =+F74*F17 -> 2604 | G71: =+G74*G17 -> 2604
B72: Acueducto | F72: =+F31 -> 111600 | G72: =+F72 -> 111600
B73: Acueducto por hembra | F73: =+F72/F16 -> 3720 | G73: =+G72/G16 -> 3720
B74: Acueducto diario por hembra | F74: =+F73/30 -> 124 | G74: =+G73/30 -> 124
B75: Gas | F75: =+F78*F17 -> 7000 | G75: =+G78*G17 -> 7000
B76: Gas | F76: =+F33 -> 300000 | G76: =+F76 -> 300000
B77: Gas por hembra | F77: =+F76/F16 -> 10000 | G77: =+G76/G16 -> 10000
B78: Gas diario por hembra | F78: =+F77/30 -> 333.3333333 | G78: =+G77/30 -> 333.3333333
B79: RECOLECCIÓN RESIDUOS PELIGROSOS | F79: =+F82*F17 -> 2776.666667 | G79: =+G82*G17 -> 2776.666667
B80: Recolección residuos peligrosos | F80: =+Servicios!M49 -> 119000 | G80: =+F80 -> 119000
B81: Recolección residuos peligrosos por hembra | F81: =+F80/F16 -> 3966.666667 | G81: =+G80/G16 -> 3966.666667
B82: Recolección residuos peligrosos diario por hembra | F82: =+F81/30 -> 132.2222222 | G82: =+G81/30 -> 132.2222222
B83: LIMPIEZA Y DESINFECCIÓN | F83: =+F84+F88 -> 2800 | G83: =+G84+G88 -> 2800
B84: Productos | F84: =+F87*F17 -> 933.3333333 | G84: =+G87*G17 -> 933.3333333
B85: Productos | F85: =+F36 -> 40000 | G85: =+F85 -> 40000
B86: Productos por hembra | F86: =+F85/F16 -> 1333.333333 | G86: =+G85/G16 -> 1333.333333
B87: Productos diario por hembra | F87: =+F86/30 -> 44.44444444 | G87: =+G86/30 -> 44.44444444
B88: Elementos usados | F88: =+F91*F17 -> 1866.666667 | G88: =+G91*G17 -> 1866.666667
B89: Elementos usados | F89: =+F35 -> 80000 | G89: =+F89 -> 80000
B90: Elementos usados por hembra | F90: =+F89/F16 -> 2666.666667 | G90: =+G89/G16 -> 2666.666667
B91: Elementos usados diario por hembra | F91: =+F90/30 -> 88.88888889 | G91: =+G90/30 -> 88.88888889
B92: OTROS COSTOS | F92: =+F95*F17 -> 4666.666667 | G92: =+G95*G17 -> 4666.666667
B93: Otros costos | F93: =+F37 -> 200000 | G93: =+F93 -> 200000
B94: Otros costos por hembra | F94: =+F93/F16 -> 6666.666667 | G94: =+G93/G16 -> 6666.666667
B95: Otros costos diario por hembra | F95: =+F94/30 -> 222.2222222 | G95: =+G94/30 -> 222.2222222
B98: Total Nacidos Vivos | E98: =+Gestación!E104 -> 11.656
B99: Destetados | E99: =+Inicio!N148 -> 10.66524
B101: COSTOS | F101: Nacidos vivos | G101: Destetados
B103: =+B46 -> INVENTARIO EQUIPOS E INSTALACIONES | E103: =+F46 -> 47107.9 | F103: =+E103/$E$98 -> 4041.5151 | G103: =+E103/$E$99 -> 4416.956393
B104: =+B52 -> VACUNAS | E104: =+F52 -> 5600 | F104: =+E104/$E$98 -> 480.4392588 | G104: =+E104/$E$99 -> 525.0702281
B105: =+B56 -> MEDICAMENTOS | E105: =+F56 -> 5600 | F105: 480.4392588 | G105: 525.0702281
B106: =+B60 -> ALIMENTACIÓN | E106: =+F60 -> 191100 | F106: 16394.9897 | G106: 17918.02154
B107: =+B63 -> SALARIO | E107: =+F63 -> 76223.18589 | F107: 6539.394809 | G107: 7146.879573
B108: =+B66 -> SERVICIOS PÚBLICOS | E108: =+F66 -> 23604 | F108: 2025.051476 | G108: 2213.171012
B109: =+B79 -> RECOLECCIÓN RESIDUOS PELIGROSOS | E109: =+F79 -> 2776.666667 | F109: 238.2177991 | G109: 260.3473215
B110: =+B83 -> LIMPIEZA Y DESINFECCIÓN | E110: =+F83 -> 2800 | F110: 240.2196294 | G110: 262.5351141
B111: =+B92 -> OTROS COSTOS | E111: =+F92 -> 4666.666667 | F111: 400.366049 | G111: 437.5585235
E113: =+SUM(E103:E111) -> 359478.4192 | F113: =+SUM(F103:F111) -> 30840.63308 | G113: =+SUM(G103:G111) -> 33705.60993
F114: =+F113*E98 -> 359478.4192 | G114: =+G113*E99 -> 359478.4192
B122: Total Nacidos Vivos | E122: =+Inicio!BO36 -> 11.656
B123: Destetados | E123: =+Inicio!AZ148 -> 10.66524
B125: COSTOS | F125: Nacidos | G125: =+B123 -> Destetados
B127: =+B103 -> INVENTARIO EQUIPOS E INSTALACIONES | E127: =+G46 -> 47107.9 | F127: =+E127/$E$122 -> 4041.5151 | G127: =+E127/$E$123 -> 4416.956393
B128: =+B104 -> VACUNAS | E128: =+G52 -> 5600 | F128: =+E128/$E$122 -> 480.4392588 | G128: =+E128/$E$123 -> 525.0702281
B129: MEDICAMENTOS | E129: =+G56 -> 5600 | F129: =+E129/$E$122 -> 480.4392588 | G129: 525.0702281
B130: ALIMENTACIÓN | E130: =+G60 -> 191100 | F130: =+E130/$E$122 -> 16394.9897 | G130: 17918.02154
B131: SALARIO | E131: =+G63 -> 76223.18589 | F131: 6539.394809 | G131: 7146.879573
B132: SERVICIOS PÚBLICOS | E132: =+G66 -> 23604 | F132: 2025.051476 | G132: 2213.171012
B133: RECOLECCIÓN RESIDUOS PELIGROSOS | E133: =+G79 -> 2776.666667 | F133: 238.2177991 | G133: =+E133/$E$123 -> 260.3473215
B134: LIMPIEZA Y DESINFECCIÓN | E134: =+G83 -> 2800 | F134: 240.2196294 | G134: 262.5351141
B135: OTROS COSTOS | E135: =+G92 -> 4666.666667 | F135: 400.366049 | G135: 437.5585235
E137: =+SUM(E127:E135) -> 359478.4192 | F137: =+SUM(F127:F135) -> 30840.63308 | G137: =+SUM(G127:G135) -> 33705.60993
F138: =+F137*E122 -> 359478.4192 | G138: =+G137*E123 -> 359478.4192

Sheet Precebo
A2: SIMULADOR COSTOS PRODUCCIÓN
A4: PRECEBOS
B9: =+"Costo lechón precebo ("&$F$17&" kilos)" -> Costo lechón precebo (28 kilos) | F9: =+F134+Lactancia!F11 -> 201079.6296
B10: Costo por mortalidad en la etapa | F10: =+(F112-E112)*E98 -> 994648.3393
B11: Costo de un punto de conversión alimenticia (0,01) | F11: =+F58/F12 -> 440
F12: =+F20/0.01 -> 160.8090909
B14: Datos productivos de la etapa | J14: Instalaciones y equipo
B15: Número de cerdos precebos | F15: =+Inicio!L44 -> 747 | G15: =+Inicio!AX44 -> 747 | J15: Valor arrendamiento por lechón | N15: =+IF(P15=0,O15,P15) -> 1438.36 | O15: =+O16+O17 -> 865.9566667 | P15: =+(Inicio!M101/100)*F17 -> 1438.36
B16: Duración de la etapa (días) | F16: =+Inicio!L45 -> 49 | G16: =+Inicio!AX45 -> 49 | J16: Valor metro cuadrado (obra civil) | N16: 482672 | O16: =+(N16/(N18*12))*O19 -> 764.2306667
B17: Peso al finalizar la etapa | F17: =+Inicio!L47 -> 28 | G17: =+Inicio!AX47 -> 28 | J17: Valor equipos de la etapa por metro cuadrado | N17: 2677 | O17: =+N17*O19/N19 -> 101.726
B18: Peso al iniciar la etapa | F18: =+Inicio!L36 -> 6 | G18: =+Inicio!AX36 -> 6 | J18: Depreciación instalaciones | N18: 10 | Q18: 231174.9161
B19: Tasa mortalidad etapa | F19: =+Inicio!L46 -> 0.016 | G19: =+Inicio!AX46 -> 0.016 | J19: Depreciación equipo | N19: 5 | O19: 0.19
B20: Coeficiente de conversión alimenticia | F20: =+N26 -> 1.608090909 | G20: =+O26 -> 1.608090909 | J20: Gastos mensuales en reparaciones | N20: 35000 | P20: =+Inicio!M102 -> 35000
O21: =+IF(P20=0,N20,P20) -> 35000
B22: Mano de obra | J22: Alimento
B23: Cerdos por persona | F23: =+'Mano Obra'!F16:G16 -> 747 | G23: =+'Mano Obra'!F34 -> 747 | J23: Consumo diario (kg) | N23: =+Inicio!K82 -> 0.722 | O23: =+O27/O24 -> 0.722
B24: Salarios de la etapa | F24: =+'Mano Obra'!O16 -> 2271458.561 | G24: =+'Mano Obra'!O34 -> 2271458.561 | J24: Duración consumo alimento (días) | N24: =+F16 -> 49 | O24: =+G16 -> 49
B25: Unidades de mano de obra directa | F25: =+'Mano Obra'!J16 -> 1 | G25: =+'Mano Obra'!J34 -> 1 | J25: Valor alimento por kilogramo ($) | N25: =+Inicio!P82 -> 2000 | O25: =+N25 -> 2000
J26: índice de conversión | N26: =+N27/N28 -> 1.608090909 | O26: =+Inicio!AX48 -> 1.608090909
B27: Otros costos | J27: total kilos consumidos | N27: =+N23*N24 -> 35.378 | O27: =+O28*O26 -> 35.378
B28: Servicios públicos | J28: peso ganado | N28: =+F17-F18 -> 22 | O28: =+G17-G18 -> 22
B29: Energía Eléctrica | F29: =+Servicios!F26 -> 648000
B30: Agua | F30: =+Servicios!F50 -> 379440
B31: Recolección de residuos peligrosos | F31: =+Servicios!M50 -> 91000 | J31: Vacunas y medicamentos
B32: Gas | F32: =+Servicios!M23 -> 700000 | J32: Total vacunas y consumibles | N32: =+Inicio!M109*K46 -> 480000
B33: Limpieza y desinfección | J33: Total medicamentos y consumibles | N33: =+Inicio!M108*L46 -> 320000
B34: Elementos (baldes, escobas, etc) | F34: =+Limpieza!M26 -> 80000
B35: Productos (jabón, desinfectantes, etc.) | F35: =+Limpieza!F26 -> 40000
B36: Otros costos | F36: =+Inicio!$M$118/5 -> 200000
B41: Costo total de la etapa | F41: =+F42*F15 -> 63176342.69 | G41: =+G42*G15 -> 63176342.69
B42: Costo de lechón precebo (sin mortalidad) | F42: =+F44+F50+F54+F58+F61+F64+F77+F81+F90 -> 84573.41725 | G42: =+G44+G50+G54+G58+G61+G64+G77+G81+G90 -> 84573.41725 | K42: Vacunas | L42: Medicamentos
F43: Caso inicial | J43: Reemplazos | K43: 0.4 | L43: 0.2
B44: INVENTARIO EQUIPOS E INSTALACIONES | F44: =+F45+F48 -> 2425.849669 | G44: =+G45+G48 -> 2425.849669 | J44: Gestantes | K44: 0.3 | L44: 0.1
B45: Instalaciones y equipo | F45: =+F47*F16 -> 2349.321333 | G45: =+G47*G16 -> 2349.321333 | J45: Lactancia | K45: 0.1 | L45: 0.3
B46: Valor de arrendamiento mensual por lechón | F46: =+N15 -> 1438.36 | G46: =+F46 -> 1438.36 | J46: Precebo | K46: 0.2 | L46: 0.4
B47: Valor a amortizar diario por lechón | F47: =+F46/30 -> 47.94533333 | G47: =+G46/30 -> 47.94533333 | K47: =+SUM(K43:K46) -> 1 | L47: =+SUM(L43:L46) -> 1
B48: Reparaciones | F48: =+F49*F16 -> 76.52833556 | G48: =+G49*G16 -> 76.52833556
B49: Gastos diarios reparaciones por lechón | F49: =+O21/30/F15 -> 1.561802767 | G49: =+O21/30/G15 -> 1.561802767
B50: VACUNAS | F50: =+F53*F16 -> 1049.531459 | G50: =+G53*G16 -> 1049.531459
B51: Valor de vacunas de la etapa | F51: =+N32 -> 480000 | G51: =+F51 -> 480000
B52: Valor vacunas por lechón | F52: =+F51/F15 -> 642.5702811 | G52: =+G51/G15 -> 642.5702811
B53: Valor vacunas por lechón/día | F53: =+F52/30 -> 21.41900937 | G53: =+G52/30 -> 21.41900937
B54: MEDICAMENTOS | F54: =+F57*F16 -> 699.6876394 | G54: =+G57*G16 -> 699.6876394
B55: Valor de medicamentos de la etapa | F55: =+N33 -> 320000 | G55: =+F55 -> 320000
B56: Valor medicamentos por lechón | F56: =+F55/F15 -> 428.3801874 | G56: =+G55/G15 -> 428.3801874
B57: Valor medicamentos por lechón/día | F57: =+F56/30 -> 14.27933958 | G57: =+G56/30 -> 14.27933958
B58: ALIMENTACIÓN | F58: =+F60 -> 70756 | G58: =+G60 -> 70756
B59: Consumo total alimento por lechón(kg) | F59: =+N23*N24 -> 35.378 | G59: =+O23*O24 -> 35.378
B60: Valor alimento total por lechón | F60: =+F59*N25 -> 70756 | G60: =+G59*O25 -> 70756
B61: SALARIO | F61: =+F63*F16 -> 4966.598372 | G61: =+G63*G16 -> 4966.598372
B62: Salario por lechón | F62: =+F24/F15 -> 3040.774513 | G62: =+G24/G15 -> 3040.774513
B63: Salario diario por lechón | F63: =+F62/30 -> 101.3591504 | G63: =+G62/30 -> 101.3591504
B64: SERVICIOS PÚBLICOS | F64: =+F65+F69+F73 -> 3777.0888 | G64: =+G65+G69+G73 -> 3777.0888
B65: Energía Eléctrica | F65: =+F68*F16 -> 1416.86747 | G65: =+G68*G16 -> 1416.86747
B66: Energía eléctrica | F66: =+F29 -> 648000 | G66: =+F66 -> 648000
B67: Energía eléctrica por lechón | F67: =+F66/F15 -> 867.4698795 | G67: =+G66/G15 -> 867.4698795
B68: Energía eléctrica diario por lechón | F68: =+F67/30 -> 28.91566265 | G68: =+G67/30 -> 28.91566265
B69: Acueducto | F69: =+F72*F16 -> 829.6546185 | G69: =+G72*G16 -> 829.6546185
B70: Acueducto | F70: =+F30 -> 379440 | G70: =+F70 -> 379440
B71: Acueducto por lechón | F71: =+F70/F15 -> 507.9518072 | G71: =+G70/G15 -> 507.9518072
B72: Acueducto diario por lechón | F72: =+F71/30 -> 16.93172691 | G72: =+G71/30 -> 16.93172691
B73: Gas | F73: =+F76*F16 -> 1530.566711 | G73: =+G76*G16 -> 1530.566711
B74: Gas | F74: =+F32 -> 700000 | G74: =+F74 -> 700000
B75: Gas por lechón | F75: =+F74/F15 -> 937.08166 | G75: =+G74/G15 -> 937.08166
B76: Gas diario por lechón | F76: =+F75/30 -> 31.23605533 | G76: =+G75/30 -> 31.23605533
B77: RECOLECCIÓN RESIDUOS PELIGROSOS | F77: =+F80*F16 -> 198.9736725 | G77: =+G80*G16 -> 198.9736725
B78: Recolección residuos peligrosos | F78: =+F31 -> 91000 | G78: =+F78 -> 91000
B79: Recolección residuos peligrosos por lechón | F79: =+F78/F15 -> 121.8206158 | G79: =+G78/G15 -> 121.8206158
B80: Recolección residuos peligrosos diario por lechón | F80: =+F79/30 -> 4.060687193 | G80: =+G79/30 -> 4.060687193
B81: LIMPIEZA Y DESINFECCIÓN | F81: =+F82+F86 -> 262.3828648 | G81: =+G82+G86 -> 262.3828648
B82: Productos | F82: =+F85*F16 -> 87.46095493 | G82: =+G85*G16 -> 87.46095493
B83: Productos | F83: =+F35 -> 40000 | G83: =+F83 -> 40000
B84: Productos por lechón | F84: =+F83/F15 -> 53.54752343 | G84: =+G83/G15 -> 53.54752343
B85: Productos diario por lechón | F85: =+F84/30 -> 1.784917448 | G85: =+G84/30 -> 1.784917448
B86: Elementos usados | F86: =+F89*F16 -> 174.9219099 | G86: =+G89*G16 -> 174.9219099
B87: Elementos usados | F87: =+F34 -> 80000 | G87: =+F87 -> 80000
B88: Elementos usados por lechón | F88: =+F87/F15 -> 107.0950469 | G88: =+G87/G15 -> 107.0950469
B89: Elementos usados diario por lechón | F89: =+F88/30 -> 3.569834895 | G89: =+G88/30 -> 3.569834895
B90: OTROS COSTOS | F90: =+F93*F16 -> 437.3047747 | G90: =+G93*G16 -> 437.3047747
B91: Otros costos | F91: =+F36 -> 200000 | G91: =+F91 -> 200000
B92: Otros costos por lechón | F92: =+F91/F15 -> 267.7376171 | G92: =+G91/G15 -> 267.7376171
B93: Otros costos diario por lechón | F93: =+F92/30 -> 8.924587238 | G93: =+G92/30 -> 8.924587238
B97: Lechones al inicio de la etapa | E97: =+F15 -> 747
B98: Lechones al final de la etapa | E98: =+F15*(1-F19) -> 735.048
B100: COSTOS | E100: Inicio precebos | F100: Fin precebos
B102: =+B44 -> INVENTARIO EQUIPOS E INSTALACIONES | E102: =+F44 -> 2425.849669 | F102: =+E102*(1+$F$19) -> 2464.663264
B103: =+B50 -> VACUNAS | E103: =+F50 -> 1049.531459 | F103: =+E103*(1+$F$19) -> 1066.323963
B104: =+B54 -> MEDICAMENTOS | E104: =+F54 -> 699.6876394 | F104: 710.8826417
B105: =+B58 -> ALIMENTACIÓN | E105: =+F58 -> 70756 | F105: 71888.096
B106: =+B61 -> SALARIO | E106: =+F61 -> 4966.598372 | F106: 5046.063946
B107: =+B64 -> SERVICIOS PÚBLICOS | E107: =+F64 -> 3777.0888 | F107: 3837.52222
B108: =+B77 -> RECOLECCIÓN RESIDUOS PELIGROSOS | E108: =+F77 -> 198.9736725 | F108: 202.1572512
B109: =+B81 -> LIMPIEZA Y DESINFECCIÓN | E109: =+F81 -> 262.3828648 | F109: 266.5809906
B110: =+B90 -> OTROS COSTOS | E110: =+F90 -> 437.3047747 | F110: 444.301651
E112: =+SUM(E102:E110) -> 84573.41725 | F112: =+SUM(F102:F110) -> 85926.59193
F113: =+F112*E97 -> 64187164.17
B119: Lechones al inicio de la etapa | E119: =+G15 -> 747
B120: Lechones al final de la etapa | E120: =+E119*(1-F19) -> 735.048
B122: COSTOS | E122: Inicio precebos | F122: Fin precebos
B124: =+B102 -> INVENTARIO EQUIPOS E INSTALACIONES | E124: =+G44 -> 2425.849669 | F124: =+E124*(1+$G$19) -> 2464.663264
B125: =+B103 -> VACUNAS | E125: =+G50 -> 1049.531459 | F125: =+E125*(1+$G$19) -> 1066.323963
B126: MEDICAMENTOS | E126: =+G54 -> 699.6876394 | F126: 710.8826417
B127: ALIMENTACIÓN | E127: =+G58 -> 70756 | F127: 71888.096
B128: SALARIO | E128: =+G61 -> 4966.598372 | F128: 5046.063946
B129: SERVICIOS PÚBLICOS | E129: =+G64 -> 3777.0888 | F129: 3837.52222
B130: RECOLECCIÓN RESIDUOS PELIGROSOS | E130: =+G77 -> 198.9736725 | F130: 202.1572512
B131: LIMPIEZA Y DESINFECCIÓN | E131: =+G81 -> 262.3828648 | F131: 266.5809906
B132: OTROS COSTOS | E132: =+G90 -> 437.3047747 | F132: 444.301651
E134: =+SUM(E124:E132) -> 84573.41725 | F134: =+SUM(F124:F132) -> 85926.59193
F135: =+F134*E119 -> 64187164.17

Sheet Engorde
A2: SIMULADOR COSTOS PRODUCCIÓN
A4: ENGORDE
J7: =+IF(#REF!=TRUE,"Levante y Engorde","Levante") -> 
B9: =+B40 -> Costo de cerdo engorde (109 kilos) | F9: =+F125+Precebo!F9 -> 501008.9809
B10: Costo por mortalidad en la etapa | F10: =+(F106-E106)*E92 -> 3704275.968
B11: Costo de un punto de conversión alimenticia (0,01) | F11: =+F56/F12 -> 1174.5
F12: =+F19/0.01 -> 235.4074074
B13: Datos productivos de la etapa | J13: Instalaciones y equipo
B14: Número de cerdos engorde | F14: =IF(Inicio!N10="Ciclo completo",Inicio!L52,0) -> 1260 | G14: =+IF(Inicio!N10="Ciclo completo",Inicio!AX52,0) -> 1260 | J14: Valor arrendamiento por gordo | N14: =+IF(P14=0,O14,P14) -> 5137 | O14: =+O15+O16 -> 4136.833333 | P14: =+Inicio!M101 -> 5137
B15: Duración de la etapa (días) | F15: =+IF(Inicio!N10="Ciclo completo",Inicio!L53,0) -> 84 | G15: =IF(Inicio!N10="Ciclo completo",Inicio!AX53,0) -> 84 | J15: Valor metro cuadrado (obra civil) | N15: 451420 | O15: =+(N15/(N17*12))*O18 -> 3761.833333
B16: Peso al iniciar la etapa | F16: =+IF(Inicio!N10="Ciclo completo",Precebo!F17-Inicio!L49,0) -> 28 | G16: =+IF(Inicio!N10="Ciclo completo",Inicio!AX47-Inicio!AX49,0) -> 28 | J16: Valor equipos de la etapa por metro cuadrado | N16: 1875 | O16: =+N16*O18/N18 -> 375
B17: Peso al finalizar la etapa | F17: =+IF(Inicio!N10="Ciclo completo",Inicio!L55,0) -> 109 | G17: =+IF(Inicio!N10="Ciclo completo",Inicio!AX55,0) -> 109 | J17: Depreciación instalaciones | N17: =+IF(Inicio!N10="Ciclo completo",10,0) -> 10 | R17: 231174.9161
B18: Tasa mortalidad etapa | F18: =+IF(Inicio!N10="Ciclo completo",Inicio!L54,0) -> 0.01 | G18: =+IF(Inicio!N10="Ciclo completo",Inicio!AX54,0) -> 0.01 | J18: Depreciación equipo | N18: =+IF(Inicio!N10="Ciclo completo",5,0) -> 5 | O18: 1
B19: Coeficiente de conversión alimenticia | F19: =+N25 -> 2.354074074 | G19: =+Inicio!AX56 -> 2.354074074 | J19: Gastos mensuales en reparaciones | N19: 35000 | P19: =+Inicio!M101 -> 5137
O20: =+IF(P19=0,N19,P19) -> 5137
B21: Mano de obra | J21: Alimento
B22: Cerdos por persona | F22: =+IF(Inicio!N10="Ciclo completo",'Mano Obra'!F17:G17,0) -> 1260 | G22: =+IF(Inicio!#REF!="Ciclo completo",'Mano Obra'!F35,0) ->  | J22: Consumo diario (kg) | N22: =+IF(Inicio!N10="Ciclo completo",Inicio!K83,0) -> 2.27 | O22: =+O26/O23 -> 2.27
B23: Salarios de la etapa | F23: =+IF(Inicio!N10="Ciclo completo",'Mano Obra'!O17,0) -> 2105432.161 | G23: =+IF(Inicio!N10="Ciclo completo",'Mano Obra'!O35,0) -> 2105432.161 | J23: Duración consumo alimento (días) | N23: =+F15 -> 84 | O23: =+G15 -> 84
B24: Unidades de mano de obra directa | F24: =+IF(Inicio!N10="Ciclo completo",'Mano Obra'!J17,0) -> 1 | G24: =+IF(Inicio!N10="Ciclo completo",'Mano Obra'!J35,0) -> 1 | J24: Valor alimento por kilogramo ($) | N24: =+IF(Inicio!N10="Ciclo completo",Inicio!P83,0) -> 1450 | O24: =+N24 -> 1450
J25: índice de conversión | N25: =IF(Inicio!N10="Ciclo completo",N26/N27,0) -> 2.354074074 | O25: =+G19 -> 2.354074074
B26: Otros costos | J26: total kilos consumidos | N26: =+N22*N23 -> 190.68 | O26: =+O27*O25 -> 190.68
B27: Servicios públicos | J27: peso ganado | N27: =+F17-F16 -> 81 | O27: =+G17-G16 -> 81
B28: Energía Eléctrica | F28: =+IF(Inicio!N10="Ciclo completo",Servicios!F27,0) -> 240000
B29: Agua | F29: =+IF(Inicio!N10="Ciclo compleo",Servicios!F51,0) -> 0 | J29: Vacunas y medicamentos
B30: Recolección de residuos peligrosos | F30: =+IF(Inicio!N10="Ciclo completo",Servicios!M51,0) -> 70000 | J30: Total vacunas y consumibles | N30: =+Inicio!M109*K45 -> 0
B31: Limpieza y desinfección | J31: Total medicamentos y consumibles | N31: =+Inicio!M108*L45 -> 0
B32: Elementos (baldes, escobas, etc) | F32: =+IF(Inicio!N10="Ciclo completo",Limpieza!M27,0) -> 80000
B33: Productos (jabón, desinfectantes, etc.) | F33: =+IF(Inicio!N10="Ciclo completo",Limpieza!F27,0) -> 40000
B34: Otros costos | F34: =+IF(Inicio!N10="Ciclo completo",Inicio!$M$118/5,0) -> 200000 | J34: =+F17-F16 -> 81 | K34: peso ganado
J35: =+J34/F15 -> 0.9642857143
J36: =+G17-G16 -> 81
J37: =+J36/J35 -> 84 | K37: Días
B39: Costo total de la etapa | F39: =+F40*F14 -> 374169289.7 | G39: =+G40*G14 -> 374169289.7
B40: =+"Costo de cerdo engorde ("&$F$17&" kilos)" -> Costo de cerdo engorde (109 kilos) | E40: Sin mortalidad | F40: =+F42+F48+F52+F56+F59+F62+F71+F75+F84 -> 296959.7537 | G40: =+G42+G48+G52+G56+G59+G62+G71+G75+G84 -> 296959.7537 | K40: Vacunas | L40: Medicamentos
F41: Caso inicial | J41: Reemplazos | K41: 0.4 | L41: 0.2
B42: INVENTARIO EQUIPOS E INSTALACIONES | F42: =+F43+F46 -> 14395.01556 | G42: =+G43+G46 -> 14395.01556 | J42: Gestantes | K42: 0.3 | L42: 0.1
B43: Instalaciones y equipo | F43: =+F45*F15 -> 14383.6 | G43: =+G45*G15 -> 14383.6 | J43: Lactancia | K43: 0.1 | L43: 0.3
B44: Valor de arrendamiento mensual por cerdo | F44: =+N14 -> 5137 | G44: =+F44 -> 5137 | J44: Precebo | K44: 0.2 | L44: 0.4
B45: Valor a amortizar diario por cerdo | F45: =+F44/30 -> 171.2333333 | G45: =+G44/30 -> 171.2333333 | J45: Engorde | K45: 0 | L45: 0
B46: Reparaciones | F46: =+F47*F15 -> 11.41555556 | G46: =+G47*G15 -> 11.41555556 | K46: =+SUM(K41:K44) -> 1 | L46: =+SUM(L41:L44) -> 1
B47: Gastos diarios reparaciones por cerdo | F47: =+O20/30/F14 -> 0.1358994709 | G47: =+O20/30/G14 -> 0.1358994709
B48: VACUNAS | F48: =+F51*F15 -> 0 | G48: =+G51*G15 -> 0
B49: Valor de vacunas de la etapa | F49: =+N30 -> 0 | G49: =+O30 -> 0
B50: Valor vacunas por cerdo | F50: =+F49/F14 -> 0 | G50: =+G49/G14 -> 0
B51: Valor vacunas por cerdo/día | F51: =+F50/30 -> 0 | G51: =+G50/30 -> 0
B52: MEDICAMENTOS | F52: =+F55*F15 -> 0 | G52: =+G55*G15 -> 0
B53: Valor de medicamentos de la etapa | F53: =+N31 -> 0 | G53: =+O31 -> 0
B54: Valor medicamentos por cerdo | F54: =+F53/F14 -> 0 | G54: =+G53/G14 -> 0
B55: Valor medicamentos por cerdo/día | F55: =+F54/30 -> 0 | G55: =+G54/30 -> 0
B56: ALIMENTACIÓN | F56: =+F58 -> 276486 | G56: =+G58 -> 276486
B57: Consumo total alimento por cerdo(kg) | F57: =+N22*N23 -> 190.68 | G57: =+O22*O23 -> 190.68
B58: Valor alimento total por cerdo | F58: =+N24*F57 -> 276486 | G58: =+O24*G57 -> 276486
B59: SALARIO | F59: =+F61*F15 -> 4678.738137 | G59: =+G61*G15 -> 4678.738137
B60: Salario por cerdo | F60: =+F23/F14 -> 1670.977906 | G60: =+G23/G14 -> 1670.977906
B61: Salario diario por cerdo | F61: =+F60/30 -> 55.69926353 | G61: =+G60/30 -> 55.69926353
B62: SERVICIOS PÚBLICOS | F62: =+F63+F67 -> 533.3333333 | G62: =+G63+G67 -> 533.3333333
B63: Energía Eléctrica | F63: =+F66*F15 -> 533.3333333 | G63: =+G66*G15 -> 533.3333333
B64: Energía eléctrica | F64: =+F28 -> 240000 | G64: =+F64 -> 240000
B65: Energía eléctrica por cerdo | F65: =+F64/F14 -> 190.4761905 | G65: =+G64/G14 -> 190.4761905
B66: Energía eléctrica diario por cerdo | F66: =+F65/30 -> 6.349206349 | G66: =+G65/30 -> 6.349206349
B67: Acueducto | F67: =+F70*F15 -> 0 | G67: =+G70*G15 -> 0
B68: Acueducto | F68: =+F29 -> 0 | G68: =+F68 -> 0
B69: Acueducto por cerdo | F69: =+F68/F14 -> 0 | G69: =+G68/G14 -> 0
B70: Acueducto diario por cerdo | F70: =+F69/30 -> 0 | G70: =+G69/30 -> 0
B71: RECOLECCIÓN RESIDUOS PELIGROSOS | F71: =+F74*F15 -> 155.5555556 | G71: =+G74*G15 -> 155.5555556
B72: Recolección residuos peligrosos | F72: =+F30 -> 70000 | G72: =+F72 -> 70000
B73: Recolección residuos peligrosos por cerdo | F73: =+F72/F14 -> 55.55555556 | G73: =+G72/G14 -> 55.55555556
B74: Recolección residuos peligrosos diario por cerdo | F74: =+F73/30 -> 1.851851852 | G74: =+G73/30 -> 1.851851852
B75: LIMPIEZA Y DESINFECCIÓN | F75: =+F76+F80 -> 266.6666667 | G75: =+G76+G80 -> 266.6666667
B76: Productos | F76: =+F79*F15 -> 88.88888889 | G76: =+G79*G15 -> 88.88888889
B77: Productos | F77: =+F33 -> 40000 | G77: =+F77 -> 40000
B78: Productos por cerdo | F78: =+F77/F14 -> 31.74603175 | G78: =+G77/G14 -> 31.74603175
B79: Productos diario por cerdo | F79: =+F78/30 -> 1.058201058 | G79: =+G78/30 -> 1.058201058
B80: Elementos usados | F80: =+F83*F15 -> 177.7777778 | G80: =+G83*G15 -> 177.7777778
B81: Elementos usados | F81: =+F32 -> 80000 | G81: =+F81 -> 80000
B82: Elementos usados por cerdo | F82: =+F81/F14 -> 63.49206349 | G82: =+G81/G14 -> 63.49206349
B83: Elementos usados diario por cerdo | F83: =+F82/30 -> 2.116402116 | G83: =+G82/30 -> 2.116402116
B84: OTROS COSTOS | F84: =+F87*F15 -> 444.4444444 | G84: =+G87*G15 -> 444.4444444
B85: Otros costos | F85: =+F34 -> 200000 | G85: =+F85 -> 200000
B86: Otros costos por cerdo | F86: =+F85/F14 -> 158.7301587 | G86: =+G85/G14 -> 158.7301587
B87: Otros costos diario por cerdo | F87: =+F86/30 -> 5.291005291 | G87: =+G86/30 -> 5.291005291
B90: =+Inicio!N10 -> Ciclo completo
B91: Cerdos al inicio de la etapa | E91: =+F14 -> 1260
B92: Cerdos al final de la etapa | E92: =+E91*(1-F18) -> 1247.4
B94: COSTOS | E94: Inicio precebos | F94: Fin precebos
B96: =+B42 -> INVENTARIO EQUIPOS E INSTALACIONES | E96: =+IF(B90="Ciclo completo",F42,0) -> 14395.01556 | F96: =+E96*(1+$F$18) -> 14538.96571
B97: =+B48 -> VACUNAS | E97: =+IF(B90="Ciclo completo",F48,0) -> 0 | F97: =+E97*(1+$F$18) -> 0
B98: =+B52 -> MEDICAMENTOS | E98: =+IF(B90="Ciclo completo",F52,0) -> 0 | F98: 0
B99: =+B56 -> ALIMENTACIÓN | E99: =IF(B90="Ciclo completo",F56,0) -> 276486 | F99: 279250.86
B100: =+B59 -> SALARIO | E100: =+IF(B90="Ciclo completo",F59,0) -> 4678.738137 | F100: 4725.525518
B101: =+B62 -> SERVICIOS PÚBLICOS | E101: =+IF(B90="Ciclo completo",F62,0) -> 533.3333333 | F101: 538.6666667
B102: =+B71 -> RECOLECCIÓN RESIDUOS PELIGROSOS | E102: =+IF(B90="Ciclo completo",F71,0) -> 155.5555556 | F102: 157.1111111
B103: =+B75 -> LIMPIEZA Y DESINFECCIÓN | E103: =+IF(B90="Ciclo completo",F75,0) -> 266.6666667 | F103: 269.3333333
B104: =+B84 -> OTROS COSTOS | E104: =+IF(B90="Ciclo completo",F84,0) -> 444.4444444 | F104: 448.8888889
E106: =+SUM(E96:E104) -> 296959.7537 | F106: =+SUM(F96:F104) -> 299929.3512
F107: =+F106*E92 -> 374131872.7
B110: Cerdos al inicio de la etapa | E110: =+G14 -> 1260
B111: Cerdos al final de la etapa | E111: =+E110*(1-F18) -> 1247.4
B113: COSTOS | E113: Inicio precebos | F113: Fin precebos
B115: =+B96 -> INVENTARIO EQUIPOS E INSTALACIONES | E115: =+IF(B90="Ciclo completo",G42,0) -> 14395.01556 | F115: =+E115*(1+$G$18) -> 14538.96571
B116: =+B97 -> VACUNAS | E116: =+IF(B90="Ciclo completo",G48,0) -> 0 | F116: =+E116*(1+$G$18) -> 0
B117: =+B98 -> MEDICAMENTOS | E117: =+IF(B90="Ciclo completo",G52,0) -> 0 | F117: 0
B118: =+B99 -> ALIMENTACIÓN | E118: =+IF(B90="Ciclo completo",G56,0) -> 276486 | F118: 279250.86
B119: SALARIO | E119: =+IF(B90="Ciclo completo",G59,0) -> 4678.738137 | F119: 4725.525518
B120: SERVICIOS PÚBLICOS | E120: =+IF(B90="Ciclo completo",G62,0) -> 533.3333333 | F120: 538.6666667
B121: RECOLECCIÓN RESIDUOS PELIGROSOS | E121: =+IF(B90="Ciclo completo",G71,0) -> 155.5555556 | F121: 157.1111111
B122: LIMPIEZA Y DESINFECCIÓN | E122: =+IF(B90="Ciclo completo",G75,0) -> 266.6666667 | F122: 269.3333333
B123: OTROS COSTOS | E123: =+IF(B90="Ciclo completo",G84,0) -> 444.4444444 | F123: 448.8888889
E125: =+SUM(E115:E123) -> 296959.7537 | F125: =+SUM(F115:F123) -> 299929.3512
F126: =+F125*E111 -> 374131872.7

Sheet Reproductores (hidden)
A2: SIMULADOR COSTOS PRODUCCIÓN
A4: DOSIS SEMINAL
B9: ¿Origen del semen? | D9: Propio | H9: Propio
H10: Compra
B11: Costo dosis seminal
B14: Tipo de inseminación | D14: Post cervical
B15: ¿Cuál es el precio por dosis? | D15: 30000
B18: DATOS PRODUCTIVOS DE LA ETAPA | F18: Granja | J18: INSTALACIONES | N18: Granja
B19: Número de reproductores | F19: =+Inicio!L25 -> 2 | J19: Área en metros cuadrados | N19: 100
B20: Vida útil (años) | F20: 3 | J20: Valor metro cuadrado (obra civil) | N20: 665753 | P20: =+IF(N20=0,O20,N20) -> 665753
B21: Precio compra reproductor | F21: 12000000 | J21: Gastos mensuales en reparaciones | N21: 20000 | P21: =+IF(N21=0,O21,N21) -> 20000
B22: Precio venta reproductor | F22: =250*Inicio!G20 -> 500000 | J22: Años depreciación (instalaciones) | N22: 10 | P22: 10
J23: Valor equipo e instrumentos de laboratorio
B24: INSEMINACIÓN ARTIFICIAL
B25: Meta de inseminación de cerdas a la semana | G25: 0
B26: Cuantas dósis aplica por cerda
B27: Tipo de inseminación | F27: Intrauterina
B28: Número de dosis | F28: 0
B30: ALIMENTACIÓN | D30: 0
B31: Alimento 2 | C31: Nombre: | J31: Alimento 2 | K31: Nombre:
B32: Consumo diario por reproductor (kg) | J32: Consumo diario (kg)
B33: Duración consumo alimento (días) | J33: Duración consumo alimento (días)
B34: Valor alimento reproductor por kilogramo ($) | J34: Valor alimento por kilogramo ($)
B37: EQUIPO DE LABORATORIO | J37: INSUMOS INSEMINACIÓN ARTIFICIAL
B38: Cantidad | C38: Equipo | F38: Valor unitario($) | K38: Insumo por eyaculado y dosis | M38: Valor unitario($)
B40: 1 | C40: Baño María digital | K40: Guantes desechables
B41: 1 | C41: Báscula electrónica digital 5000 gx 2 g | K41: Agua Destilada
B42: 1 | C42: Caballete de inseminación | K42: Diluyente
B43: 1 | C43: Cámara de Burker | K43: Filtros
B44: 1 | C44: Cámara de Newbawer | K44: Bolsa Dilución
B45: 1 | C45: Detector de preñez dopler | K45: Bolsa Recolección
B46: 1 | C46: Espermodensímetro | K46: Laminas
B47: 1 | C47: Nevera conservación de semen x 350 bot | K47: Laminillas
B48: 1 | C48: Microscopio cuatro objetivos | K48: Papel Reynolds
B49: 1 | C49: Placa térmica | K49: Botellas
B50: 1 | C50: Termo de recolección | K50: Papel Limpiador
B51: 1 | C51: Pipeta volumétrica de un ml | K51: Gel Aseptogel
B52: 1 | C52: Termómetro de 12" | K52: Otro | L52: ¿Cuál?
B53: 1 | C53: Horno esterilizador | K53: Otro | L53: ¿Cuál?
B54: 1 | C54: Balón volumétrico de 100 ml
B55: 1 | C55: Erlenmeyer de 2000 ml
B56: 1 | C56: Termómetro de máxima y mínima
B57: 1 | C57: Nevera para transporte de dosis
B58: 1 | C58: Tijera
B59: 1 | C59: Otro | D59: ¿Cuál?
B60: 1 | C60: Otro | D60: ¿Cuál?
C61: Total | F61: =+SUM(F40:G60) -> 0
B64: Costo total de la etapa | F64: =+F65*F32 ->  | G64: =+G65*G32 ->  | M64: Vacunas | N64: Medicamentos
B65: Costo hembra de reemplazo | F65: =+F68+F72+F78+F82+F86+F93+F100+F109+F113+F122 ->  | G65: =+G68+G72+G78+G82+G86+G93+G100+G109+G113+G122 ->  | L65: Reproductores | M65: 0.2 | N65: 0.1
F66: Caso inicial | G66: Proyección | L66: Reemplazos | M66: 0.2 | N66: 0.1
A67: 1 | B67: AMORTIZACIÓN TOTAL | F67: =+F69*G40+F71*G40 ->  | G67: =+G69*H40+G71*H40 ->  | L67: Gestantes | M67: 0.3 | N67: 0.1
B68: Valor amortizar | F68: =+(F33-G39) -> 0 | G68: =+(F34-H39) -> 0 | L68: Lactancia | M68: 0.1 | N68: 0.3
B69: Valor a amortizar diario hembra | F69: =+F68/G40 ->  | G69: =+G68/H40 ->  | H69: =+F69*$F$23 ->  | I69: =+G69*$G$23 ->  | L69: Precebo | M69: 0.2 | N69: 0.4
B70: Valor a amortizar - Macho reproductor | F70: =+(F36*F35)-(G38*F35) -> 0 | G70: =+(G36*G35)-(H38*G35) -> 0 | M70: =+SUM(M65:M69) -> 1 | N70: =+SUM(N65:N69) -> 1
B71: Valor a amortizar diario | F71: =+F70/(360*G42) ->  | G71: =+G70/(360*H42) -> 
A72: 2 | B72: INVENTARIO EQUIPOS E INSTALACIONES | F72: =+F73+F76 ->  | G72: =+G73+G76 -> 
B73: Instalaciones y equipo | F73: =+F75*G40 -> 0 | G73: =+G75*H40 -> 0
B74: Valor de arrendamiento mensual por cerda | F74: =+N31 -> 0 | G74: =+F74 -> 0
B75: Valor a amortizar diario por hembra | F75: =+F74/30 -> 0 | G75: =+G74/30 -> 0
B76: Reparaciones | F76: =+F77*G40 ->  | G76: =+G77*H40 -> 
B77: Gastos diarios reparaciones por hembra | F77: =+(O37/30)/F32 ->  | G77: =+(O37/30)/G32 -> 
A78: 3 | B78: VACUNAS | F78: =+F81*G40 -> 0 | G78: =+G81*H40 -> 0
B79: Valor de vacunas de la etapa | F79: =+O44 -> 0 | G79: =+F79 -> 0
B80: Valor vacunas por cerda | F80: =+$G$60/$F$15 ->  | G80: =+$H$60/$G$15 ->  | K80: Días vida útil machos
B81: Valor vacunas por cerda/día | F81: =+$F$62/30 -> 0 | G81: =+$G$62/30 -> 0 | K81: Consumo diario por macho
A82: 4 | B82: MEDICAMENTOS | F82: =+F85*G40 ->  | G82: =+G85*H40 ->  | K82: Valor por kilo
B83: Valor de medicamentos de la etapa | F83: =+O45 -> 0 | G83: =+F83 -> 0
B84: Valor medicamentos por cerda | F84: =+$F$65/$F$15 ->  | G84: =+$G$65/$G$15 -> 
B85: Valor medicamentos por cerda/día | F85: =+$F$66/30 ->  | G85: =+$G$66/30 -> 
A86: 5 | B86: ALIMENTACIÓN | F86: =+F88+F92 ->  | G86: =+G88+G92 -> 
B87: Consumo total alimento por hembra (kg) | F87: =+O39*O40 -> 0 | G87: =+P39*P40 -> 0
B88: Valor alimento total por hembra | F88: =+F87*O41 -> 0 | G88: =+G87*P41 -> 0
B89: Consumo total alimento por macho | F89: =+M81*M80 -> 0 | G89: =+N81*N80 -> 0
B90: Valor alimento total por macho | F90: =+F89*M82 -> 0 | G90: =+G89*N82 -> 0
B91: Valor alimento diario | F91: =+F90/M80 ->  | G91: =+G90/N80 -> 
B92: Valor alimento total por macho | F92: =+F91*G40 ->  | G92: =+G91*H40 -> 
A93: 6 | B93: SALARIO | F93: =IF(F35>0,(F96+F99),F96) ->  | G93: =IF(G35>0,(G96+G99),G96) -> 
B94: Salario reemplazos | F94: =+G46 -> 0 | G94: =+H46 -> 0
B95: Salario diario por hembra de reemplazo | F95: =+(F94/F32)/30 ->  | G95: =+(G94/G32)/30 -> 
B96: Salario reemplazos etapa | F96: =+(F95*G40) ->  | G96: =+(G95*H40) -> 
B97: Salario machos | F97: =+'Mano Obra'!O31 -> 591126.4538 | G97: =+'Mano Obra'!O49 -> 0
B98: Salario diario por macho | F98: =+F97/F35/30 ->  | G98: =+G97/G35/30 -> 
B99: salario machos etapa | F99: =+(F98*G40) ->  | G99: =+(G98*H40) -> 
A100: 7 | B100: SERVICIOS PÚBLICOS | F100: =+F101+F105 ->  | G100: =+G101+G105 -> 
B101: Energía Eléctrica | F101: =+F104*G40 ->  | G101: =+G104*H40 -> 
B102: Energía eléctrica reemplazos | F102: =+G51 -> 0 | G102: =+F102 -> 0
B103: Energía eléctrica por hembra de reemplazo | F103: =+F102/F32 ->  | G103: =+G102/G32 -> 
B104: Energía eléctrica diario por hembra de reemplazo | F104: =+F103/30 ->  | G104: =+G103/30 -> 
B105: Acueducto | F105: =+F108*G40 ->  | G105: =+G108*H40 -> 
B106: Acueducto reemplazos | F106: =+G52 -> 0 | G106: =+F106 -> 0
B107: Acueducto por hembra de reemplazo | F107: =+F106/F32 ->  | G107: =+G106/G32 -> 
B108: Acueducto diario por hembra de reemplazo | F108: =+F107/30 ->  | G108: =+G107/30 -> 
A109: 8 | B109: RECOLECCIÓN RESIDUOS PELIGROSOS | F109: =+F112*G40 ->  | G109: =+G112*H40 -> 
B110: Recolección residuos peligrosos reemplazos | F110: =+G53 -> 0 | G110: =+F110 -> 0
B111: Recolección residuos peligrosos por hembra de reemplazo | F111: =+F110/F32 ->  | G111: =+G110/G32 -> 
B112: Recolección residuos peligrosos diario por hembra de reemplazo | F112: =+F111/30 ->  | G112: =+G111/30 -> 
A113: 9 | B113: LIMPIEZA Y DESINFECCIÓN | F113: =+F114+F118 ->  | G113: =+G114+G118 -> 
B114: Productos | F114: =+F117*G40 ->  | G114: =+G117*H40 -> 
B115: Productos reemplazos | F115: =+G56 -> 0 | G115: =+F115 -> 0
B116: Productos por hembra de reemplazo | F116: =+F115/F32 ->  | G116: =+G115/G32 -> 
B117: Productos diario por hembra de reemplazo | F117: =+F116/30 ->  | G117: =+G116/30 -> 
B118: Elementos usados | F118: =+F121*G40 ->  | G118: =+G121*H40 -> 
B119: Elementos usados reemplazos | F119: =+G55 -> 0 | G119: =+F119 -> 0
B120: Elementos usados por hembra de reemplazo | F120: =+F119/F32 ->  | G120: =+G119/G32 -> 
B121: Elementos usados diario por hembra de reemplazo | F121: =+F120/30 ->  | G121: =+G120/30 -> 
A122: 10 | B122: OTROS COSTOS | F122: =+F125*G40 ->  | G122: =+G125*H40 -> 
B123: Otros costos en reemplazos | F123: =+G57 -> 0 | G123: =+F123 -> 0
B124: Otros costos por hembra de reemplazo | F124: =+F123/$F$15 ->  | G124: =+G123/$G$15 -> 
B125: Otros costos diario por hembra | F125: =+F124/30 ->  | G125: =+G124/30 -> 
B128: Partos esperados por hembra | E128: =+Inicio!N164 -> 0
B129: Total Nacidos | E129: =+Inicio!L46 -> 0.016 | G129: por parto
B130: Nacidos vivos | E130: =+Inicio!#REF! ->  | G130: =+F70/F131 -> 
B131: Dosis efectivas | E131: =+Inicio!N33/Reemplazos!F36 -> 0 | F131: =+E131*E128 -> 0
B132: COSTOS | E132: Parto | F132: Nacidos | G132: Nacidos vivos
B134: =+B67 -> AMORTIZACIÓN TOTAL | E134: =+IF(F35=0,(H69/E128),(H69/E128)+(F70/F131)) ->  | F134: =+E134/$E$111 ->  | G134: =+E134/$E$112 -> 
B135: =+B72 -> INVENTARIO EQUIPOS E INSTALACIONES | E135: =+F72/E128 ->  | F135: =+E135/$E$111 ->  | G135: =+E135/$E$112 ->  | J135: cerdas por macho | L135: =+Inicio!N33/Reemplazos!F36 -> 0
B136: =+B78 -> VACUNAS | E136: =+F78/E128 ->  | J136: partos por macho | L136: =+L135*E128 -> 0
B137: =+B82 -> MEDICAMENTOS | E137: =+F82/E128 ->  | J137: partos en etapa | L137: =+(L136/(G41*365))*G40 -> 
B138: =+B86 -> ALIMENTACIÓN | E138: =IF(F35=0,(F88/E128),(F88/E128)+(F92/L137)) -> 
B139: =+B93 -> SALARIO | E139: =+IF(F35=0,(F96/E128),(F96/E128+F99/L137)) -> 
B140: =+B100 -> SERVICIOS PÚBLICOS | E140: =+F100/E128 -> 
B141: =+B109 -> RECOLECCIÓN RESIDUOS PELIGROSOS | E141: =+F109/E128 -> 
B142: =+B113 -> LIMPIEZA Y DESINFECCIÓN | E142: =+F113/E128 -> 
B143: =+B122 -> OTROS COSTOS | E143: =+F122/E128 -> 
E145: =+SUM(E134:E143) ->  | F145: =+SUM(F134:F143) ->  | G145: =+SUM(G134:G143) -> 
F146: =+F145*E129 ->  | G146: =+G145*E130 -> 
E147: Mortalidad y Momificados | G147: =+G145-F145 -> 
B150: Proyección
B151: Partos esperados por hembra | E151: =+Inicio!AZ164 -> 0
B152: Total Nacidos | E152: =+Inicio!AX46 -> 0.016
B153: Nacidos vivos | E153: =+Inicio!BO55 -> 26.31660182
E154: =+Inicio!AZ33/Reemplazos!G36 ->  | F154: =+E154*E151 -> 
B155: COSTOS | E155: Parto | F155: Nacidos | G155: Nacidos vivos
B157: =+B134 -> AMORTIZACIÓN TOTAL | E157: =+IF(G35=0,(I69/E151),(I69/E151)+(G70/F154)) ->  | F157: =+E157/$E$134 ->  | G157: =+E157/$E$135 -> 
B158: INVENTARIO EQUIPOS E INSTALACIONES | E158: =+G72/E151 ->  | F158: =+E158/$E$134 ->  | G158: =+E158/$E$135 ->  | J158: cerdas por macho | L158: =Inicio!AZ33/Reemplazos!G36 -> 
B159: VACUNAS | E159: =+G78/E151 ->  | J159: partos por macho | L159: =+L158*E151 -> 
B160: MEDICAMENTOS | E160: =+G82/E151 ->  | J160: partos en etapa | L160: =+(L159/(H42*365))*H40 -> 
B161: ALIMENTACIÓN | E161: =+IF(G35=0,(G88/E151),(G88/E151+G92/L160)) -> 
B162: SALARIO | E162: =+IF(G35=0,(G96/E151),(G96/E151+G99/L160)) -> 
B163: SERVICIOS PÚBLICOS | E163: =+G100/E151 -> 
B164: RECOLECCIÓN RESIDUOS PELIGROSOS | E164: =+G109/E151 -> 
B165: LIMPIEZA Y DESINFECCIÓN | E165: =+G113/E151 -> 
B166: OTROS COSTOS | E166: =+G122/E151 -> 
E168: =+SUM(E157:E166) ->  | F168: =+SUM(F157:F166) ->  | G168: =+SUM(G157:G166) -> 
F169: =+F168*E152 ->  | G169: =+G168*E153 -> 
G170: =+G168-F168 -> 

Sheet Resultados (hidden)
C2: HEMBRAS REEMPLAZO | F2: GESTANTES | I2: LACTANCIA | K2: PRECEBOS | M2: ENGORDE | O2: TOTAL
B3: COSTOS | C3: Parto | D3: Nacidos | E3: Nacidos vivos | F3: Parto | G3: Nacidos | H3: Nacidos vivos | I3: Nacidos vivos | J3: Destete | K3: Ingresan | L3: Salen etapa | M3: Ingresan | N3: Salen etapa
B5: AMORTIZACIÓN HEMBRA REEMPLAZO | C5: =+Reemplazos!E116 -> 111805.8082 | D5: =+Reemplazos!F116 -> 9016.597437 | E5: =+Reemplazos!G116 -> 9592.124933 | O5: =+E5+H5+J5+L5+N5 -> 9592.124933
B6: INVENTARIO EQUIPOS E INSTALACIONES | C6: =+Reemplazos!E117 -> 21241.66914 | D6: =+Reemplazos!F117 -> 1713.037834 | E6: =+Reemplazos!G117 -> 1822.380674 | F6: =+Gestación!E108 -> 133370.1606 | G6: =+Gestación!F108 -> 10755.65811 | H6: =+Gestación!G108 -> 11442.18948 | I6: =+Lactancia!F103 -> 4041.5151 | J6: =+Lactancia!G103 -> 4416.956393 | K6: =+Precebo!E102 -> 2425.849669 | L6: =+Precebo!F102 -> 2464.663264 | M6: =Engorde!E96 -> 14395.01556 | N6: =Engorde!F96 -> 14538.96571 | O6: =+E6+H6+J6+L6+N6 -> 34685.15552
B7: VACUNAS | C7: =+Reemplazos!E118 -> 23056 | D7: =+Reemplazos!F118 -> 1859.354839 | E7: =+Reemplazos!G118 -> 1978.037062 | F7: =+Gestación!E109 -> 16094.11765 | G7: =+Gestación!F109 -> 1297.912713 | H7: =+Gestación!G109 -> 1380.758206 | I7: =+Lactancia!F104 -> 480.4392588 | J7: =+Lactancia!G104 -> 525.0702281 | K7: =+Precebo!E103 -> 1049.531459 | L7: =+Precebo!F103 -> 1066.323963 | M7: =Engorde!E97 -> 0 | N7: =Engorde!F97 -> 0 | O7: 4950.189459
B8: MEDICAMENTOS | C8: =+Reemplazos!E119 -> 3842.666667 | D8: =+Reemplazos!F119 -> 309.8924731 | E8: =+Reemplazos!G119 -> 329.6728437 | F8: =+Gestación!E110 -> 178.8235294 | G8: =+Gestación!F110 -> 14.42125237 | H8: =+Gestación!G110 -> 15.34175784 | I8: =+Lactancia!F105 -> 480.4392588 | J8: =+Lactancia!G105 -> 525.0702281 | K8: =+Precebo!E104 -> 699.6876394 | L8: =+Precebo!F104 -> 710.8826417 | M8: =Engorde!E98 -> 0 | N8: =Engorde!F98 -> 0 | O8: 1580.967471
B9: INSEMINACIÓN | F9: =+Gestación!E111 -> 34760 | G9: =+Gestación!F111 -> 2803.225806 | H9: =+Gestación!G111 -> 2982.155113 | O9: 2982.155113
B10: ALIMENTACIÓN | C10: =+Reemplazos!E120 -> 55056.06986 | D10: =+Reemplazos!F120 -> 4440.005634 | E10: =+Reemplazos!G120 -> 4723.410249 | F10: =+Gestación!E112 -> 342587.3 | G10: =+Gestación!F112 -> 27628.00806 | H10: =+Gestación!G112 -> 29391.49794 | I10: =+Lactancia!F106 -> 16394.9897 | J10: =+Lactancia!G106 -> 17918.02154 | K10: =+Precebo!E105 -> 70756 | L10: =+Precebo!F105 -> 71888.096 | M10: =+Engorde!E99 -> 276486 | N10: =+Engorde!F99 -> 279250.86 | O10: =+E10+H10+J10+L10+N10 -> 403171.8857
B11: SALARIO | C11: =+Reemplazos!E121 -> 32381.1747 | D11: =+Reemplazos!F121 -> 2611.385057 | E11: =+Reemplazos!G121 -> 2778.069209 | F11: =+Gestación!E113 -> 116787.6335 | G11: =+Gestación!F113 -> 9418.357544 | H11: =+Gestación!G113 -> 10019.5293 | I11: =+Lactancia!F107 -> 6539.394809 | J11: =+Lactancia!G107 -> 7146.879573 | K11: =+Precebo!E106 -> 4966.598372 | L11: =+Precebo!F106 -> 5046.063946 | M11: =Engorde!E100 -> 4678.738137 | N11: =Engorde!F100 -> 4725.525518 | O11: =+E11+H11+J11+L11+N11 -> 29716.06755
B12: SERVICIOS PÚBLICOS | C12: =+Reemplazos!E122 -> 4490.156 | D12: =+Reemplazos!F122 -> 362.1093548 | E12: =+Reemplazos!G122 -> 385.2227179 | F12: =+Gestación!E114 -> 28814.08941 | G12: =+Gestación!F114 -> 2323.716888 | H12: =+Gestación!G114 -> 2472.039243 | I12: =+Lactancia!F108 -> 2025.051476 | J12: =+Lactancia!G108 -> 2213.171012 | K12: =+Precebo!E107 -> 3777.0888 | L12: =+Precebo!F107 -> 3837.52222 | M12: =Engorde!E101 -> 533.3333333 | N12: =Engorde!F101 -> 538.6666667 | O12: 9446.621859
B13: RECOLECCIÓN RESIDUOS PELIGROSOS | C13: =+Reemplazos!E123 -> 3362.333333 | D13: =+Reemplazos!F123 -> 271.155914 | E13: =+Reemplazos!G123 -> 288.4637383 | F13: =+Gestación!E115 -> 9968.686275 | G13: =+Gestación!F115 -> 803.9263125 | H13: =+Gestación!G115 -> 855.2407579 | I13: =+Lactancia!F109 -> 238.2177991 | J13: =+Lactancia!G109 -> 260.3473215 | K13: =+Precebo!E108 -> 198.9736725 | L13: =+Precebo!F108 -> 202.1572512 | M13: =Engorde!E102 -> 155.5555556 | N13: =Engorde!F102 -> 157.1111111 | O13: 1763.32018
B14: LIMPIEZA Y DESINFECCIÓN | C14: =+Reemplazos!E124 -> 1441 | D14: =+Reemplazos!F124 -> 116.2096774 | E14: =+Reemplazos!G124 -> 123.6273164 | F14: =+Gestación!E116 -> 4344.705882 | G14: =+Gestación!F116 -> 350.3795066 | H14: =+Gestación!G116 -> 372.744156 | I14: =+Lactancia!F110 -> 240.2196294 | J14: =+Lactancia!G110 -> 262.5351141 | K14: =+Precebo!E109 -> 262.3828648 | L14: =+Precebo!F109 -> 266.5809906 | M14: =Engorde!E103 -> 266.6666667 | N14: =Engorde!F103 -> 269.3333333 | O14: 1294.82091
B15: OTROS COSTOS | C15: =+Reemplazos!E125 -> 4803.333333 | D15: =+Reemplazos!F125 -> 387.3655914 | E15: =+Reemplazos!G125 -> 412.0910547 | F15: =+Gestación!E117 -> 965.4901961 | G15: =+Gestación!F117 -> 77.86211259 | H15: =+Gestación!G117 -> 82.83203467 | I15: =+Lactancia!F111 -> 400.366049 | J15: =+Lactancia!G111 -> 437.5585235 | K15: =+Precebo!E110 -> 437.3047747 | L15: =+Precebo!F110 -> 444.301651 | M15: =Engorde!E104 -> 444.4444444 | N15: =Engorde!F104 -> 448.8888889 | O15: 1825.672153
B16: TOTAL | C16: =+SUM(C5:C15) -> 261480.2113 | D16: =+SUM(D5:D15) -> 21087.11381 | E16: 22433.0998 | F16: 687871.0071 | G16: 55473.46831 | H16: 59014.32799 | I16: 30840.63308 | J16: 33705.60993 | K16: 84573.41725 | L16: 85926.59193 | M16: =+SUM(M5:M15) -> 296959.7537 | N16: 299929.3512 | O16: =+SUM(O5:O15) -> 501008.9809
H17: =+H16+E16 -> 81447.42779 | J17: =+J16+H17 -> 115153.0377 | L17: =+L16+J17 -> 201079.6296 | O17: =+E16+H16+J16+L16+N16 -> 501008.9809
B23: EN GRANJA | N23: Reemplazos | O23: =+Reemplazos!F46 -> 73368047.89
N24: Gestantes | O24: =+Gestación!F48 -> 116938071.2
N25: Lactantes | O25: =+Lactancia!F43 -> 10784352.58
B26: Alimentación | C26: =+O10 -> 403171.8857 | D26: =+C26/$C$35 -> 0.7747265692 | N26: Precebos | O26: =+Precebo!F41 -> 63176342.69
B27: Píe de cría | C27: =+O9+O5 -> 12574.28005 | D27: =+C27/$C$35 -> 0.02416247061 | N27: Engorde | O27: =+Engorde!F39 -> 374169289.7
B28: Mano de obra | C28: =+O11 -> 29716.06755 | D28: 0.05710176695
B29: Instalaciones y equipos | C29: =+O6 -> 34685.15552 | D29: 0.06665026132 | O29: =+SUM(O23:O27) -> 638436104
B30: Vacunas y medicamentos | C30: =+O7+O8 -> 6531.15693 | D30: 0.01255013303
B31: Limpieza y desinfección | C31: =+Resultados!O14 -> 1294.82091 | D31: 0.002488100478
B32: Servicios públicos | C32: =+O12 -> 9446.621859 | D32: 0.01815242878
B33: Transporte | C33: =IF(Inicio!N10="Ciclo completo",C67*Transporte!E11,Transporte!F11*Transporte!F20) -> 19396.41345 | D33: 0.03727173788
B34: Otros | C34: =+O15+O13 -> 3588.992333 | D34: 0.006896531765
B35: Total | C35: =+SUM(C26:C34) -> 520405.3943 | D35: =+SUM(D26:D34) -> 1
C36: =+C35-C33 -> 501008.9809
B43: Ingreso | C43: =+Inicio!G151 -> 239960448
B44: Costo | C44: =+Inicio!G152 -> 216653315.6
B45: Utilidad | C45: =+Inicio!G153 -> 23307132.37
B59: =+Inicio!N10 -> Ciclo completo
B61: HEMBRAS REEMPLAZO | C61: =+E16 -> 22433.0998 | E61: Otros datos de interés (valor en granja)
B62: GESTANTE | C62: =+H16 -> 59014.32799 | E62: Costo del lechón nacido vivo | H62: =+C61+C62 -> 81447.42779
B63: LACTANCIA | C63: =+J16 -> 33705.60993 | E63: Costo del lechón al destete | H63: =+H62+C63 -> 115153.0377
B64: PRECEBO | C64: =+L16 -> 85926.59193 | E64: Costo lechón precebo | H64: =+H63+C64 -> 201079.6296
B65: ENGORDE | C65: =+N16 -> 299929.3512 | E65: Costo de cerdo engorde | H65: =+IF(B59="Ciclo completo",C65+H64,0) -> 501008.9809
B66: =+IF(B59="Ciclo completo","COSTO CICLO COMPLETO", "COSTO CRÍA") -> COSTO CICLO COMPLETO | C66: =+SUM(C61:C65) -> 501008.9809 | E66: Costo de un día no productivo | H66: =+Gestación!F10/Gestación!F24 -> 5587.9042
B67: COSTO TRANSPORTE POR KG | C67: =+Inicio!L64 -> 181.5803543
B68: Costo transporte por animal | C68: =+IF(B59="Ciclo completo",C67*Inicio!L55,C67*Inicio!L47) -> 19792.25862
B69: =+IF(B59="Ciclo completo","Costo de ciclo completo + transporte","Costo cría + transporte") -> Costo de ciclo completo + transporte | C69: =+C66+C68 -> 520801.2395
B70: COSTO POR KG | C70: =+IF(B59="Ciclo completo",C66/Inicio!L55,C66/Inicio!L47) -> 4596.412669
B71: COSTO POR KG CON TRANSPORTE | C71: =+C70+C67 -> 4777.993023
C78: HEMBRAS REEMPLAZO | F78: GESTANTES | I78: LACTANCIA | K78: PRECEBOS | M78: ENGORDE
B79: COSTOS | C79: Parto | D79: Nacidos | E79: Nacidos vivos | F79: Parto | G79: Nacidos | H79: Nacidos vivos | I79: Nacidos vivos | J79: Destete | K79: Ingresan | L79: Salen etapa | M79: Ingresan | N79: Salen etapa
B81: AMORTIZACIÓN HEMBRA REEMPLAZO | C81: =+Reemplazos!E139 -> 111805.8082 | D81: =+Reemplazos!F139 -> 9016.597437 | E81: =+Reemplazos!G139 -> 9592.124933 | O81: =+E81+H81+J81+L81+N81 -> 9592.124933
B82: INVENTARIO EQUIPOS E INSTALACIONES | C82: =+Reemplazos!E140 -> 21241.66914 | D82: =+Reemplazos!F140 -> 1713.037834 | E82: =+Reemplazos!G140 -> 1822.380674 | F82: =+Gestación!E131 -> 133370.1606 | G82: =+Gestación!F131 -> 10755.65811 | H82: =+Gestación!G131 -> 11442.18948 | I82: =+Lactancia!F127 -> 4041.5151 | J82: =+Lactancia!G127 -> 4416.956393 | K82: =+Precebo!E124 -> 2425.849669 | L82: =+Precebo!F124 -> 2464.663264 | M82: =Engorde!E115 -> 14395.01556 | N82: =Engorde!F115 -> 14538.96571 | O82: =+E82+H82+J82+L82+N82 -> 34685.15552
B83: VACUNAS | C83: =+Reemplazos!E141 -> 23056 | D83: =+Reemplazos!F141 -> 1859.354839 | E83: =+Reemplazos!G141 -> 1978.037062 | F83: =+Gestación!E132 -> 16094.11765 | G83: =+Gestación!F132 -> 1297.912713 | H83: =+Gestación!G132 -> 1380.758206 | I83: =+Lactancia!F128 -> 480.4392588 | J83: =+Lactancia!G128 -> 525.0702281 | K83: =+Precebo!E125 -> 1049.531459 | L83: =+Precebo!F125 -> 1066.323963 | M83: =Engorde!E116 -> 0 | N83: =+Engorde!F116 -> 0 | O83: =+E83+H83+J83+L83+N83 -> 4950.189459
B84: MEDICAMENTOS | C84: =+Reemplazos!E142 -> 3842.666667 | D84: =+Reemplazos!F142 -> 309.8924731 | E84: =+Reemplazos!G142 -> 329.6728437 | F84: =+Gestación!E133 -> 178.8235294 | G84: =+Gestación!F133 -> 14.42125237 | H84: =+Gestación!G133 -> 15.34175784 | I84: =+Lactancia!F129 -> 480.4392588 | J84: =+Lactancia!G129 -> 525.0702281 | K84: =+Precebo!E126 -> 699.6876394 | L84: =+Precebo!F126 -> 710.8826417 | M84: =Engorde!E117 -> 0 | N84: =Engorde!F117 -> 0 | O84: 1580.967471
B85: INSEMINACIÓN | F85: =+Gestación!E134 -> 34760 | G85: =+Gestación!F134 -> 2803.225806 | H85: =+Gestación!G134 -> 2982.155113 | O85: 2982.155113
B86: ALIMENTACIÓN | C86: =+Reemplazos!E143 -> 55056.06986 | D86: =+Reemplazos!F143 -> 4440.005634 | E86: =+Reemplazos!G143 -> 4723.410249 | F86: =+Gestación!E135 -> 342587.3 | G86: =+Gestación!F135 -> 27628.00806 | H86: =+Gestación!G135 -> 29391.49794 | I86: =+Lactancia!F130 -> 16394.9897 | J86: =+Lactancia!G130 -> 17918.02154 | K86: =+Precebo!E127 -> 70756 | L86: =+Precebo!F127 -> 71888.096 | M86: =Engorde!E118 -> 276486 | N86: =Engorde!F118 -> 279250.86 | O86: 403171.8857
B87: SALARIO | C87: =+Reemplazos!E144 -> 32381.1747 | D87: =+Reemplazos!F144 -> 2611.385057 | E87: =+Reemplazos!G144 -> 2778.069209 | F87: =+Gestación!E136 -> 116787.6335 | G87: =+Gestación!F136 -> 9418.357544 | H87: =+Gestación!G136 -> 10019.5293 | I87: =+Lactancia!F131 -> 6539.394809 | J87: =+Lactancia!G131 -> 7146.879573 | K87: =+Precebo!E128 -> 4966.598372 | L87: =+Precebo!F128 -> 5046.063946 | M87: =Engorde!E119 -> 4678.738137 | N87: =Engorde!F119 -> 4725.525518 | O87: 29716.06755
B88: SERVICIOS PÚBLICOS | C88: =+Reemplazos!E145 -> 4490.156 | D88: =+Reemplazos!F145 -> 362.1093548 | E88: =+Reemplazos!G145 -> 385.2227179 | F88: =+Gestación!E137 -> 28814.08941 | G88: =+Gestación!F137 -> 2323.716888 | H88: =+Gestación!G137 -> 2472.039243 | I88: =+Lactancia!F132 -> 2025.051476 | J88: =+Lactancia!G132 -> 2213.171012 | K88: =+Precebo!E129 -> 3777.0888 | L88: =+Precebo!F129 -> 3837.52222 | M88: =Engorde!E120 -> 533.3333333 | N88: =Engorde!F120 -> 538.6666667 | O88: 9446.621859
B89: RECOLECCIÓN RESIDUOS PELIGROSOS | C89: =+Reemplazos!E146 -> 3362.333333 | D89: =+Reemplazos!F146 -> 271.155914 | E89: =+Reemplazos!G146 -> 288.4637383 | F89: =+Gestación!E138 -> 9968.686275 | G89: =+Gestación!F138 -> 803.9263125 | H89: =+Gestación!G138 -> 855.2407579 | I89: =+Lactancia!F133 -> 238.2177991 | J89: =+Lactancia!G133 -> 260.3473215 | K89: =+Precebo!E130 -> 198.9736725 | L89: =+Precebo!F130 -> 202.1572512 | M89: =Engorde!E121 -> 155.5555556 | N89: =Engorde!F121 -> 157.1111111 | O89: 1763.32018
B90: LIMPIEZA Y DESINFECCIÓN | C90: =+Reemplazos!E147 -> 1441 | D90: =+Reemplazos!F147 -> 116.2096774 | E90: =+Reemplazos!G147 -> 123.6273164 | F90: =+Gestación!E139 -> 4344.705882 | G90: =+Gestación!F139 -> 350.3795066 | H90: =+Gestación!G139 -> 372.744156 | I90: =+Lactancia!F134 -> 240.2196294 | J90: =+Lactancia!G134 -> 262.5351141 | K90: =+Precebo!E131 -> 262.3828648 | L90: =+Precebo!F131 -> 266.5809906 | M90: =Engorde!E122 -> 266.6666667 | N90: =Engorde!F122 -> 269.3333333 | O90: 1294.82091
B91: OTROS COSTOS | C91: =+Reemplazos!E148 -> 4803.333333 | D91: =+Reemplazos!F148 -> 387.3655914 | E91: =+Reemplazos!G148 -> 412.0910547 | F91: =+Gestación!E140 -> 965.4901961 | G91: =+Gestación!F140 -> 77.86211259 | H91: =+Gestación!G140 -> 82.83203467 | I91: =+Lactancia!F135 -> 400.366049 | J91: =+Lactancia!G135 -> 437.5585235 | K91: =+Precebo!E132 -> 437.3047747 | L91: =+Precebo!F132 -> 444.301651 | M91: =Engorde!E123 -> 444.4444444 | N91: =Engorde!F123 -> 448.8888889 | O91: 1825.672153
B92: TOTAL | C92: =+SUM(C81:C91) -> 261480.2113 | D92: =+SUM(D81:D91) -> 21087.11381 | E92: =+SUM(E81:E91) -> 22433.0998 | F92: =+SUM(F82:F91) -> 687871.0071 | G92: =+SUM(G82:G91) -> 55473.46831 | H92: =+SUM(H82:H91) -> 59014.32799 | I92: =+SUM(I81:I91) -> 30840.63308 | J92: 33705.60993 | K92: 84573.41725 | L92: 85926.59193 | M92: 296959.7537 | N92: 299929.3512 | O92: 501008.9809
O93: =+O92-C108 -> 0
B95: PROYECCIÓN
N97: =+C98-C26 -> 0
B98: Alimentación | C98: =+O86 -> 403171.8857 | D98: =+C98/$C$35 -> 0.7747265692 | N98: =+C99-C27 -> 0
B99: Píe de cría | C99: =+O81+O85 -> 12574.28005 | D99: =+C99/$C$35 -> 0.02416247061 | N99: 0
B100: Mano de obra | C100: =+O87 -> 29716.06755 | D100: =+C100/$C$35 -> 0.05710176695 | N100: 0
B101: Instalaciones y equipos | C101: =+O82 -> 34685.15552 | D101: 0.06665026132 | N101: 0
B102: Vacunas y medicamentos | C102: =+O83+O84 -> 6531.15693 | D102: 0.01255013303 | N102: 0
B103: Limpieza y desinfección | C103: =+O90 -> 1294.82091 | D103: 0.002488100478 | N103: 0
B104: Servicios públicos | C104: =+O88 -> 9446.621859 | D104: 0.01815242878 | N104: 0
B105: Transporte | C105: =+IF(Inicio!N10="Ciclo completo",Transporte!E38*Transporte!E29,Transporte!F38*Transporte!F29) -> 19396.41345 | D105: 0.03727173788 | N105: 0
B106: Otros | C106: =+O91+O89 -> 3588.992333 | D106: 0.006896531765 | N106: =+C107-C35 -> 0
B107: Total | C107: =+SUM(C98:C106) -> 520405.3943 | N107: 0
C108: =+C107-C105 -> 501008.9809
B115: Ingreso | C115: =+Inicio!AS151 -> 239960448
B116: Costo | C116: =+Inicio!AS152 -> 216653315.6
B117: Utilidad | C117: =+Inicio!AS153 -> 23307132.37
B131: =+B59 -> Ciclo completo
B133: =+B61 -> HEMBRAS REEMPLAZO | C133: =+E92 -> 22433.0998 | E133: Otros datos de interés (valor en granja) | N133: =+C133-C61 -> 0
B134: =+B62 -> GESTANTE | C134: =+H92 -> 59014.32799 | E134: Costo del lechón nacido vivo | H134: =+C133+C134 -> 81447.42779 | J134: =+H62-H134 -> 0 | N134: =+C134-C62 -> 0
B135: LACTANCIA | C135: =+J92 -> 33705.60993 | E135: Costo del lechón al destete | H135: =+H134+C135 -> 115153.0377 | J135: =+H63-H135 -> 0 | N135: =+C135-C63 -> 0
B136: PRECEBO | C136: =+L92 -> 85926.59193 | E136: Costo lechón precebo | H136: =+H135+C136 -> 201079.6296 | J136: =+H64-H136 -> 0 | N136: 0
B137: ENGORDE | C137: =+N92 -> 299929.3512 | E137: Costo de cerdo engorde | H137: =IF(B131="Ciclo completo",C137+H136,0) -> 501008.9809 | J137: =+H65-H137 -> 0 | N137: 0
B138: COSTO CICLO COMPLETO | C138: =+SUM(C133:C137) -> 501008.9809 | E138: Costo de un día no productivo | H138: =+Gestación!G49/Gestación!G24 -> 5587.9042 | J138: =+H66-H138 -> 0 | N138: 0
B139: COSTO TRANSPORTE POR KG | C139: =+Inicio!AX64 -> 181.5803543 | N139: 0
B140: Costo transporte por animal | C140: =+IF(B131="Ciclo completo",C139*Inicio!AX55,C139*Inicio!AX47) -> 19792.25862 | N140: 0
B141: Costo de ciclo completo + transporte | C141: =+C138+C140 -> 520801.2395 | N141: 0
B142: COSTO POR KG | C142: =IF(B131="Ciclo completo",C138/Inicio!AX55,C138/Inicio!AX47) -> 4596.412669 | N142: 0
B143: =+B71 -> COSTO POR KG CON TRANSPORTE | C143: =+C142+C139 -> 4777.993023 | N143: 0
N144: 0

Sheet Transporte (hidden)
B1: Oculta
A2: SIMULADOR COSTOS PRODUCCIÓN
A4: Transporte
B8: Merma | C8: =+Inicio!L59 -> 0.02 | E8: Ciclo completo | F8: Cría
B9: Cantidad promedio de cerdos enviados (mensual) | E9: =+Inicio!K157 -> 416 | F9: =+E9 -> 416
B10: Efectivamente en planta | E10: =+E9 -> 416
B11: Peso final del cerdo | E11: =+Inicio!L55*(1-C8) -> 106.82 | F11: =+Inicio!L47 -> 28
B12: Valor del flete | E12: =+Inicio!L62 -> 300000 | F12: =+E12 -> 300000
B13: Número de cerdos gordos por flete | E13: =+Inicio!L61 -> 40 | F13: =+Inicio!L61 -> 40
B14: Número de fletes por mes | E14: =+Inicio!L63 -> 11 | F14: =+E14 -> 11
B15: Cuota de fomento F.N.P. | E15: =(+'Mano Obra'!S10/30)*0.32 -> 10460.34133
B16: Guía movilización | E16: 37946 | F16: =+E16 -> 37946
B17: Otros | E17: 0 | F17: =+E17 -> 0
B18: Otros | E18: 0 | F18: =+E18 -> 0
B20: Costo de transporte por kilo | E20: =+((E14*E12)+(E15*E9)+(E14*E16))/(E11*E10) -> 181.5803543 | F20: =+((F14*F12)+(F15*F9)+(F14*F16))/(F11*F9) -> 319.1454327
B25: merma | C25: =+Inicio!AX59 -> 0.02
B26: proyección | E26: Ciclo completo | F26: Cría
B27: Cantidad promedio de cerdos enviados (mensual) | E27: =+Inicio!K159 -> 416 | F27: =+E27 -> 416
B28: Efectivamente en planta | E28: =+E27 -> 416
B29: Peso final del cerdo | E29: =+Inicio!AX55*(1-C25) -> 106.82 | F29: =+Inicio!AX47 -> 28
B30: Valor del flete | E30: =+Inicio!AX62 -> 300000 | F30: =+Inicio!AX62 -> 300000
B31: Número de cerdos por flete | E31: =+Inicio!AX61 -> 40 | F31: =+Inicio!AX61 -> 40
B32: Número de fletes por mes | E32: =+Inicio!AX63 -> 11 | F32: =+Inicio!AX63 -> 11
B33: Cuota de fomento F.N.P. | E33: =+E15 -> 10460.34133
B34: Guía movilización | E34: 37946 | F34: =+E34 -> 37946
B35: Otros | E35: 0
B36: Otros | E36: 0
B38: Costo de transporte por kilo | E38: =+((E32*E30)+(E33*E27)+(E32*E34))/(E29*E28) -> 181.5803543 | F38: =+((F32*F30)+(F33*F27)+(F32*F34))/(F29*F27) -> 319.1454327

Sheet Mano Obra (hidden)
B1: Oculta
A2: Simulador de costos de producción
A4: Mano de obra
R5: Salario Año 2020, mensual
B8: Número de trabajadores en su granja | G8: =+J20 -> 8 | K8: TOTAL SALARIOS MENSUALES | O8: =+SUM(O12:O18) -> 13830358.35 | R8: CALCULADORA EMPLEADOR | W8: Auxilio transporte | X8: Cesantías | Y8: Primas | Z8: Intereses cesantías | AA8: Vacaciones | AB8: Pensiones | AC8: Salud | AD8: Riesgos laborales | AE8: Sena | AF8: ICBF | AG8: Caja Compensación
W9: =++IF($L12>0,IF($L12>(2*$S$10),0,$S$11),0) -> 102854 | X9: =+($L12+$W9)*$S$15 -> 90292.58333 | Y9: =+($L12+$W9)*$S$16 -> 90292.58333 | Z9: =+($L12+$W9)*$S$17 -> 10835.11 | AA9: =+($L12)*$S$19 -> 40860.70833 | AB9: =+($L12)*$S$21 -> 117678.84 | AC9: =+($L12)*$S$22 -> 0 | AD9: =+($L12)*$S$23 -> 5119.02954 | AE9: =+($L12)*$S$25 -> 0 | AF9: =+($L12*$S$26) -> 0 | AG9: =+($L12*$S$27) -> 39226.28
B10: Etapa | F10: Cerdos por persona | H10: No. de cerdos en la etapa | J10: Personas | L10: Salario básico promedio | M10: Salario con prestaciones* | O10: Total | R10: Salario Mensual | S10: 980657 | T10: =+T15+T16+T17+T19+T21+T22+T23+T25+T26+T27 -> 526693.8295 | W10: 102854 | X10: =+($L13+$W10)*$S$15 -> 90292.58333 | Y10: =+($L13+$W10)*$S$16 -> 90292.58333 | Z10: =+($L13+$W10)*$S$17 -> 10835.11 | AA10: =+($L13)*$S$19 -> 40860.70833 | AB10: =+($L13)*$S$21 -> 117678.84 | AC10: =+($L13)*$S$22 -> 0 | AD10: =+($L13)*$S$23 -> 5119.02954 | AE10: =+($L13)*$S$25 -> 0 | AF10: =+($L13*$S$26) -> 0 | AG10: =+($L13*$S$27) -> 39226.28
R11: Auxilio transporte | S11: 102854 | W11: 102854 | X11: 90292.58333 | Y11: 90292.58333 | Z11: 10835.11 | AA11: 40860.70833 | AB11: 117678.84 | AC11: 0 | AD11: 5119.02954 | AE11: 0 | AF11: 0 | AG11: 39226.28
B12: Reemplazos | F12: =+Inicio!N88 -> 130 | H12: =+Inicio!H88 -> 26 | J12: =+Inicio!T88 -> 0.2 | L12: =+Inicio!Z88 -> 980657 | M12: =+IF($L12<$S$10,$L12,IF($L12=0,0,$L12+SUM($W9:$AG9))) -> 1477816.135 | N12: =+M12*J12 -> 295563.2269 | O12: =+N12+($N$18/5)+($N$19*5%) -> 757152.8538 | U12: =+L12 -> 980657 | W12: 102854 | X12: 100237.8333 | Y12: 100237.8333 | Z12: 12028.54 | AA12: 45833.33333 | AB12: 132000 | AC12: 0 | AD12: 5742 | AE12: 0 | AF12: 0 | AG12: 44000
B13: Machos | F13: =+Inicio!N89 -> 5 | H13: =+Inicio!H89 -> 2 | J13: =+Inicio!T89 -> 0.4 | L13: =+Inicio!Z89 -> 980657 | M13: =+IF($L13<$S$10,$L13,IF($L13=0,0,$L13+SUM($W10:$AG10))) -> 1477816.135 | N13: =+M13*J13 -> 591126.4538 | O13: =+N13 -> 591126.4538 | W13: 102854 | X13: 90292.58333 | Y13: 90292.58333 | Z13: 10835.11 | AA13: 40860.70833 | AB13: 117678.84 | AC13: 0 | AD13: 5119.02954 | AE13: 0 | AF13: 0 | AG13: 39226.28
B14: Gestación | F14: =+Inicio!N90 -> 70.83333333 | H14: =+Inicio!H90 -> 170 | J14: =+Inicio!T90 -> 2.4 | L14: =+Inicio!Z90 -> 980657 | M14: 1477816.135 | N14: =+M14*J14 -> 3546758.723 | O14: =+N14+($N$18/5)+($N$19*30%) -> 4838480.35 | R14: PRESTACIONES SOCIALES | W14: 102854 | X14: 90292.58333 | Y14: 90292.58333 | Z14: 10835.11 | AA14: 40860.70833 | AB14: 117678.84 | AC14: 0 | AD14: 5119.02954 | AE14: 0 | AF14: 0 | AG14: 39226.28
B15: Lactancia | F15: =+Inicio!N91 -> 30 | H15: =+Inicio!H91 -> 30 | J15: =+Inicio!T91 -> 1 | L15: =+Inicio!Z91 -> 1100000 | M15: 1642933.54 | N15: 1642933.54 | O15: =+N15+($N$18/5)+($N$19*40%) -> 3266707.967 | R15: Cesantías | S15: =+T15/SUM(S10:S11) -> 0.08333333333 | T15: =+($S$10+$S$11)/12 -> 90292.58333 | W15: 102854 | X15: =+($L18+$W15)*$S$15 -> 90292.58333 | Y15: 90292.58333 | Z15: 10835.11 | AA15: 40860.70833 | AB15: 117678.84 | AC15: 0 | AD15: 5119.02954 | AE15: 0 | AF15: 0 | AG15: 39226.28
B16: Precebo | F16: =+Inicio!N92 -> 747 | H16: =+Inicio!H92 -> 747 | J16: =+Inicio!T92 -> 1 | L16: =+Inicio!Z92 -> 980657 | M16: 1477816.135 | N16: 1477816.135 | O16: =+N16+($N$18/5)+($N$19*15%) -> 2271458.561 | R16: Primas | S16: =+T16/SUM(S10:S11) -> 0.08333333333 | T16: =+($S$10+$S$11)/12 -> 90292.58333 | W16: 0 | X16: 200000 | Y16: 200000 | Z16: 24000 | AA16: 100000 | AB16: 288000 | AC16: 0 | AD16: 12528 | AE16: 0 | AF16: 0 | AG16: 96000
B17: Engorde o ceba | F17: =+Inicio!N93 -> 1260 | H17: =+Inicio!H93 -> 1260 | J17: =+Inicio!T93 -> 1 | L17: =+Inicio!Z93 -> 980657 | M17: 1477816.135 | N17: 1477816.135 | O17: =+N17+($N$18/5)+($N$19*10%) -> 2105432.161 | R17: Intereses cesantías | S17: =+T17/SUM(S10:S11) -> 0.01 | T17: =+((S10+$S$11)*12%)/12 -> 10835.11
B18: Oficios varios | F18: =+Inicio!N95 -> No aplica | H18: =+Inicio!H95 -> No aplica | J18: =+Inicio!T95 -> 1 | L18: =+Inicio!Z95 -> 980657 | M18: 1477816.135 | N18: 1477816.135 | R18: DESCANSO REMUNERADO
B19: =+Inicio!C94 -> Profesional de granja | F19: =+Inicio!N94 -> No aplica | H19: =+Inicio!N95 -> No aplica | J19: =+Inicio!T94 -> 1 | L19: =+Inicio!Z94 -> 2400000 | M19: 3320528 | N19: 3320528 | R19: Vacaciones | S19: =+T19/S10 -> 0.04166666667 | T19: =+$S$10/24 -> 40860.70833
B20: Total | H20: =+SUM(H12:I17) -> 2235 | J20: =+SUM(J12:K19) -> 8 | N20: =+SUM(N12:N19) -> 13830358.35 | O20: =+SUM(O12:O19) -> 13830358.35 | R20: APORTES SEGURIDAD SOCIAL
R21: Pensiones | S21: =+T21/$S$10 -> 0.12 | T21: =+$S$10*0.12 -> 117678.84
R22: Salud | S22: 0 | T22: =+$S$10*0.085 -> 83355.845
B23: *Exoneración para empleadores de acuerdo con el artículo 65 de la Ley 1819 de 2016 | R23: Riesgos laborales | S23: =+T23/$S$10 -> 0.00522 | T23: =+$S$10*0.00522 -> 5119.02954
R24: PARAFISCALES
R25: Sena | S25: 0 | T25: =+$S$10*0.02 -> 19613.14
R26: ICBF | S26: 0 | T26: =+$S$10*0.03 -> 29419.71
B27: Proyección | R27: Caja Compensación | S27: =+T27/$S$10 -> 0.04 | T27: =+$S$10*0.04 -> 39226.28
B28: Etapa | F28: Cerdos por persona | H28: No. de cerdos en la etapa | J28: Personas | L28: Salario básico promedio | M28: Salario con prestaciones* | O28: Total
T29: =+S10+S11+T15+T19+T21+T22+T23 -> 1420818.006
B30: Reemplazos | F30: =+Inicio!AZ74 -> 130 | H30: =+Inicio!AT74 -> 26 | J30: =+Inicio!BF74 -> 0.2 | L30: =+Inicio!BL74 -> 980657 | M30: =+IF($L30<$S$10,$L30,IF($L30=0,0,$L30+SUM($W9:$AG9))) -> 1477816.135 | N30: =+M30*J30 -> 295563.2269 | O30: =+N30+($N$36/5)+($N$37*5%) -> 757152.8538
B31: =+B13 -> Machos | F31: =+Inicio!AZ75 -> 5 | H31: =+Inicio!AT75 -> 2 | J31: =+Inicio!BF75 -> 0.4 | L31: =+Inicio!BL75 -> 980657 | M31: 1477816.135 | N31: =+M31*J31 -> 591126.4538 | O31: =+N31 -> 591126.4538
B32: Gestación | F32: =+Inicio!AZ76 -> 70.83333333 | H32: =+Inicio!AT76 -> 170 | J32: =+Inicio!BF76 -> 2.4 | L32: =+Inicio!BL76 -> 980657 | M32: 1477816.135 | N32: 3546758.723 | O32: =+N32+($N$36/5)+($N$37*30%) -> 4838480.35
B33: Lactancia | F33: =+Inicio!AZ77 -> 30 | H33: =+Inicio!AT77 -> 30 | J33: =+Inicio!BF77 -> 1 | L33: =+Inicio!BL77 -> 1100000 | M33: 1642933.54 | N33: 1642933.54 | O33: =+N33+($N$36/5)+($N$37*40%) -> 3266707.967
B34: Precebo | F34: =+Inicio!AZ78 -> 747 | H34: =+Inicio!AT78 -> 747 | J34: =+Inicio!BF78 -> 1 | L34: =+Inicio!BL78 -> 980657 | M34: 1477816.135 | N34: 1477816.135 | O34: =+N34+($N$36/5)+($N$37*15%) -> 2271458.561
B35: Engorde o ceba | F35: =+Inicio!AZ79 -> 1260 | H35: =+Inicio!AT79 -> 1260 | J35: =+Inicio!BF79 -> 1 | L35: =+Inicio!BL79 -> 980657 | M35: 1477816.135 | N35: 1477816.135 | O35: =+N35+($N$36/5)+($N$37*10%) -> 2105432.161
B36: Oficios varios | F36: =+Inicio!AZ81 -> No aplica | H36: =+Inicio!AT81 -> No aplica | J36: =+Inicio!BF81 -> 1 | L36: =+Inicio!BL81 -> 980657 | M36: 1477816.135 | N36: 1477816.135
B37: Profesional de granja | F37: No aplica | H37: No aplica | J37: =+Inicio!BF80 -> 1 | L37: =+Inicio!BL80 -> 2400000 | M37: 3320528 | N37: 3320528
B38: Total | H38: =+SUM(H30:I35) -> 2235 | J38: =+SUM(J30:K37) -> 8 | N38: =+SUM(N30:N37) -> 13830358.35 | O38: =+SUM(O30:O37) -> 13830358.35

Sheet Servicios (hidden)
B2: Oculta
B4: A continuación diligencie los siguientes cuadros para cada uno de los servicios que utiliza la granja (energía eléctrica, gas, agua, recolección residuos peligrosos, telecomunicaciones y gasolina o ACPM). Tenga en cuenta lo siguiente:
B6: 1 En la etapa administrativo considere también los servicios utilizados en el mantenimiento de la dotación. 2 En la etapa ambiental considere los servicios para el uso y el mantenimiento de los lugares y equipos relacionados con la parte ambiental (composteras, biodigestores, sitios para la disposición de residuos, bombas para fertilizar con porcinaza, molino para porcinaza sólida). 3 La etapa de bioseguridad comprende la desinfección de vehículos y el filtro sanitario.
B12: Según el consumo total de energía eléctrica en la granja, diligencie el valor de la factura mensual y la proporción empleada en cada etapa productiva: | I12: Según el consumo total de gas en la granja, diligencie el valor de la factura mensual y la proporción empleada en cada etapa productiva:
C15: ENERGÍA ELÉCTRICA MENSUAL | J15: GAS MENSUAL (Para calefacción)
C17: VALOR PROMEDIO DE LA FACTURA (tres últimos meses) | E17: =+Inicio!M111 -> 2400000 | J17: VALOR FACTURA TOTAL | L17: =+Inicio!M112 -> 1000000
C20: ETAPA | E20: % | F20: VALOR CONSUMO | J20: ETAPA | L20: % | M20: VALOR CONSUMO
E21: =+IF(SUM($E$22:$E$27)=0,"",SUM($E$22:$E$27)) -> 1 | L21: =+SUM(L22:L23) -> 1
C22: Reemplazos | E22: 0.05 | F22: =E22*$E$17 -> 120000 | J22: Lactancia | L22: 0.3 | M22: =+L22*$L$17 -> 300000
C23: Gestantes** | E23: 0.27 | F23: 648000 | J23: Precebos | L23: 0.7 | M23: =+L23*$L$17 -> 700000
C24: Vacías** | E24: 0.06 | F24: 144000
C25: Lactancia | E25: 0.25 | F25: 600000
C26: Precebos | E26: =+IF(Inicio!N10="Ciclo completo",27%,37%) -> 0.27 | F26: 648000
C27: Engorde | E27: =+IF(Inicio!N10="Ciclo completo",10%,0%) -> 0.1 | F27: 240000
C29: ** Categorizados en la etapa gestación
C31: =+IF(SUM($E$22:$E$27)>100%,"La suma de los porcentajes no puede ser mayor a 100%",IF(SUM($E$22:$E$27)<100%,"La suma de los porcentajes no puede ser menor a 100%","")) -> 
C34: AGUA | J34: RECOLECCIÓN RESIDUOS PELIGROSOS
C36: VALOR CONSUMO TOTAL | E36: =+Inicio!M113 -> 2232000 | J36: VALOR RECOLECCIÓN | L36: =+Inicio!M114 -> 700000
C37: PERIODICIDAD | E37: Mensual | J37: CANTIDAD PRODUCIDA | L37: 0
J38: PERIODICIDAD | L38: Mensual
C40: Según el consumo total de agua en la granja, diligencie la proporción empleada en cada etapa productiva: | J40: Según los residuos peligrosos generados mensualmente en la granja, diligencie cuantos kilogramos se producen en cada etapa productiva:
C44: ETAPA | E44: % | F44: VALOR CONSUMO MENSUAL | J44: ETAPA | L44: =+"kg / "&L38 -> kg / Mensual | M44: VALOR MENSUAL
E45: =+IF(SUM($E$46:$E$55)=0,"",SUM($E$46:$E$55)) -> 1
C46: Reemplazos | E46: 0.03 | F46: =+E46*$E$36 -> 66960 | J46: Reemplazos | L46: 0.01 | M46: =+L46*$L$36 -> 7000
C47: Gestantes** | E47: 0.15 | F47: 334800 | J47: Gestantes** | L47: 0.58 | M47: 406000
C48: Vacías** | E48: 0.03 | F48: 66960 | J48: Vacías** | L48: 0.01 | M48: 7000
C49: Lactancia | E49: 0.05 | F49: 111600 | J49: Lactancia | L49: 0.17 | M49: 119000
C50: Precebos | E50: =+IF(Inicio!N10="Ciclo completo",17%,74%) -> 0.17 | F50: 379440 | J50: Precebos | L50: =+IF(Inicio!N10="Ciclo completo",13%,23%) -> 0.13 | M50: 91000
C51: Engorde | E51: =+IF(Inicio!N10="Ciclo completo",57%,0%) -> 0.57 | F51: 1272240 | J51: Engorde | L51: =+IF(Inicio!N10="Ciclo completo",10%,0%) -> 0.1 | M51: 70000
L52: =+SUM(L46:L51) -> 1
C53: ** Categorizados en la etapa gestación | J53: ** Categorizados en la etapa gestación

Sheet Limpieza (hidden)
B2: Oculta
B4: A continuación ingrese los precios de los productos y elementos que usa en la granja para la limpieza y desinfección de las diferentes etapas productivas. Considere el precio cuando compre un equipo nuevo para utilizar; también tenga en cuenta lo siguiente:
B6: 1 En la etapa administrativo considere los productos y elementos usados en el mantenimiento de la dotación. 2La etapa de bioseguridad comprende la desinfección de vehículos y el filtro sanitario. 3Si implementa gas para realizar procesos de desinfección, por ejemplo flamear, ingrese el costo de ese producto en "otros".
C11: PRODUCTOS DE ASEO Y DESINFECCIÓN | J11: ELEMENTOS DE ASEO Y DESINFECCIÓN
C14: Valor mensual | E14: =+Inicio!M116 -> 200000 | J14: Valor mensual | L14: =+Inicio!M117 -> 400000
C17: ¿Cuál es la proporción (%) de estos productos que utiliza mensualmente para realizar la limpieza, desinfección y uso de pediluvios, según etapa? | J17: ¿Cuál es la proporción (%) de estos elementos que utiliza mensualmente para realizar la limpieza, desinfección y uso de pediluvios, según etapa?
C20: ETAPA | E20: % USADO POR ÁREA | F20: VALOR CONSUMO | J20: ETAPA | L20: % USADO POR ÁREA | M20: VALOR ELEMENTOS
C22: Reemplazos | E22: 0.1 | F22: =+E22*$E$14 -> 20000 | J22: Reemplazos | L22: 0.1 | M22: =+L22*$L$14 -> 40000
C23: Gestantes** | E23: 0.25 | F23: 50000 | J23: Gestantes** | L23: 0.25 | M23: 100000
C24: Vacías** | E24: 0.05 | F24: 10000 | J24: Vacías** | L24: 0.05 | M24: 20000
C25: Lactancia | E25: 0.2 | F25: 40000 | J25: Lactancia | L25: 0.2 | M25: 80000
C26: Precebos | E26: =+IF(Inicio!N10="Ciclo completo",20%,40%) -> 0.2 | F26: 40000 | J26: Precebos | L26: =+IF(Inicio!N10="Ciclo completo",20%,40%) -> 0.2 | M26: 80000
C27: Engorde | E27: =+IF(Inicio!N10="Ciclo completo",20%,0) -> 0.2 | F27: 40000 | J27: Engorde | L27: =+IF(Inicio!N10="Ciclo completo",20%,0%) -> 0.2 | M27: 80000
E28: =+SUM(E22:E27) -> 1 | L28: =+SUM(L22:L27) -> 1
C29: =+IF(SUM($E$22:$E$27)>100%,"La suma de los porcentajes no puede ser mayor a 100%",IF(SUM($E$22:$E$27)<100%,"La suma de los porcentajes no puede ser menor a 100%","")) ->  | J29: =+IF(SUM($L$22:$L$27)>100%,"La suma de los porcentajes no puede ser mayor a 100%",IF(SUM($L$22:$L$27)<100%,"La suma de los porcentajes no puede ser menor a 100%","")) -> 

Sheet Ambiental (hidden)
B1: Oculta | P1: 23 | Q1: 23 | R1: 30
B3: Nitrógeno
B5: Etapa Animal | C5: Peso (Kg) | D5: Produccion excretas (l/dia) | E5: N (Kg/dia) | F5: # de Animales | G5: Precio bulto de urea (ref) | H5: Equivalente a bultos de Urea como fuente de nitrogeno.
H6: Diarios | J6: Mensuales | L6: Anuales
H7: Bultos | I7: Precio ($) | J7: Bultos | K7: Precio ($) | L7: Bultos | M7: Precio ($)
B8: Precebo | C8: 16 | D8: 1 | E8: 0.01 | F8: =+Inicio!L44 -> 747 | G8: =+Inicio!BB118 -> 58226.78311 | H8: =(F8*E8)/23 -> 0.3247826087 | I8: =H8*$G$8 -> 18911.04652 | J8: =H8*30 -> 9.743478261 | K8: =J8*$G$8 -> 567331.3955 | L8: =H8*365 -> 118.5456522 | M8: =L8*$G$8 -> 6902531.978
B9: Levante y engorde | C9: 68 | D9: 4.3 | E9: 0.03 | F9: =+Inicio!L52 -> 1260 | H9: =(F9*E9)/23 -> 1.643478261 | I9: =H9*$G$8 -> 95694.45225 | J9: =H9*30 -> 49.30434783 | K9: =J9*$G$8 -> 2870833.567 | L9: =H9*365 -> 599.8695652 | M9: =L9*$G$8 -> 34928475.07
B10: Gestacion+Vacias+Remplazos | C10: 125 | D10: 4.2 | E10: 0.03 | F10: =+Inicio!L24+Reemplazos!F15 -> 196.3013699 | H10: =(F10*E10)/23 -> 0.256045265 | I10: =H10*$G$8 -> 14908.69211 | J10: =H10*30 -> 7.681357951 | K10: =J10*$G$8 -> 447260.7634 | L10: =H10*365 -> 93.45652174 | M10: =L10*$G$8 -> 5441672.622
B11: Lactancia con cría | C11: 170 | D11: 15.1 | E11: 0.1 | F11: =+Inicio!L33 -> 30 | H11: =(F11*E11)/23 -> 0.1304347826 | I11: =H11*$G$8 -> 7594.797797 | J11: =H11*30 -> 3.913043478 | K11: =J11*$G$8 -> 227843.9339 | L11: =H11*365 -> 47.60869565 | M11: =L11*$G$8 -> 2772101.196
B12: Total bultos generados: | H12: =SUM(H8:H11) -> 2.354740917 | I12: =SUM(I8:I11) -> 137108.9887 | J12: =H12*30 -> 70.64222752 | K12: =SUM(K8:K11) -> 4113269.66 | L12: =H12*365 -> 859.4804348 | M12: =SUM(M8:M11) -> 50044780.87
B13: Total kg generados: | H13: =(H12*50)*(1-0.2) -> 94.18963669 | I13: =I12/H13 -> 1455.669578 | J13: =(J12*50)*(1-0.2) -> 2825.689101 | K13: =K12/J13 -> 1455.669578 | L13: =(L12*50)*(1-0.2) -> 34379.21739 | M13: =M12/L13 -> 1455.669578
B16: Fósforo
B18: Etapa Animal | C18: Peso (Kg) | D18: Produccion excretas (l/dia) | E18: P (Kg/dia) | F18: # de Animales | G18: Precio bulto de DAP (ref) | H18: Equivalente a bultos de DAP como fuente de fosforo.
H19: Diarios | J19: Mensuales | L19: Anuales
H20: Bultos | I20: Precio ($) | J20: Bultos | K20: Precio ($) | L20: Bultos | M20: Precio ($)
B21: =B8 -> Precebo | C21: 16 | D21: 1 | E21: 0.01 | F21: =+F8 -> 747 | G21: =+Inicio!BB119 -> 92160.90278 | H21: =(E21*F21)/10.12 -> 0.7381422925 | I21: =H21*$G$21 -> 68027.86005 | J21: =H21*30 -> 22.14426877 | K21: =J21*$G$21 -> 2040835.802 | L21: =H21*365 -> 269.4219368 | M21: =L21*$G$21 -> 24830168.92
B22: =B9 -> Levante y engorde | C22: 68 | D22: 4.3 | E22: 0.02 | F22: =+F9 -> 1260 | H22: =(E22*F22)/10.12 -> 2.490118577 | I22: =H22*$G$21 -> 229491.5761 | J22: =H22*30 -> 74.70355731 | K22: =J22*$G$21 -> 6884747.283 | L22: =H22*365 -> 908.8932806 | M22: =L22*$G$21 -> 83764425.27
B23: =B10 -> Gestacion+Vacias+Remplazos | C23: 125 | D23: 4.2 | E23: 0.02 | F23: =+F10 -> 196.3013699 | H23: =(E23*F23)/10.12 -> 0.3879473713 | I23: =H23*$G$21 -> 35753.57997 | J23: =H23*30 -> 11.63842114 | K23: =J23*$G$21 -> 1072607.399 | L23: =H23*365 -> 141.6007905 | M23: =L23*$G$21 -> 13050056.69
B24: =B11 -> Lactancia con cría | C24: 170 | D24: 15.1 | E24: 0.08 | F24: =+F11 -> 30 | H24: =(E24*F24)/10.12 -> 0.2371541502 | I24: =H24*$G$21 -> 21856.34058 | J24: =H24*30 -> 7.114624506 | K24: =J24*$G$21 -> 655690.2174 | L24: =H24*365 -> 86.56126482 | M24: =L24*$G$21 -> 7977564.312
B25: Total pesos generados: | H25: =SUM(H21:H24)*(1-0.2) -> 3.082689913 | I25: =SUM(I21:I24) -> 355129.3567 | J25: =H25*30 -> 92.48069738 | K25: =SUM(K21:K24) -> 10653880.7 | L25: =H25*365 -> 1125.181818 | M25: =SUM(M21:M24) -> 129622215.2
B26: Total kg generados: | H26: =H25*50 -> 154.1344956 | I26: =I25/H26 -> 2304.022569 | J26: =J25*50 -> 4624.034869 | K26: =K25/J26 -> 2304.022569 | L26: =L25*50 -> 56259.09091 | M26: =M25/L26 -> 2304.022569
B29: Potasio
B31: Etapa Animal | C31: Peso (Kg) | D31: Produccion excretas (l/dia) | E31: K (Kg/dia) | F31: # de Animales | G31: Precio bulto de KCl (ref) | H31: Equivalente a bultos de KCl como fuente de potasio.
H32: Diarios | J32: Mensuales | L32: Anuales
H33: Bultos | I33: Precio ($) | J33: Bultos | K33: Precio ($) | L33: Bultos | M33: Precio ($)
B34: =B21 -> Precebo | C34: 16 | D34: 1 | E34: 0.01 | F34: =+F21 -> 747 | G34: =+Inicio!AW120 -> 1316.412414 | H34: =(F34*E34)/24.9 -> 0.3 | I34: =H34*$G$34 -> 394.9237243 | J34: =H34*30 -> 9 | K34: =J34*$G$34 -> 11847.71173 | L34: =H34*365 -> 109.5 | M34: =L34*$G$34 -> 144147.1594
B35: =B22 -> Levante y engorde | C35: 68 | D35: 4.3 | E35: 0.02 | F35: =+F22 -> 1260 | H35: =(F35*E35)/24.9 -> 1.012048193 | I35: =H35*$G$34 -> 1332.272805 | J35: =H35*30 -> 30.36144578 | K35: =J35*$G$34 -> 39968.18414 | L35: =H35*365 -> 369.3975904 | M35: =L35*$G$34 -> 486279.5737
B36: =B23 -> Gestacion+Vacias+Remplazos | C36: 125 | D36: 4.2 | E36: 0.02 | F36: =+F23 -> 196.3013699 | H36: =(F36*E36)/24.9 -> 0.157671783 | I36: =H36*$G$34 -> 207.5610925 | J36: =H36*30 -> 4.730153491 | K36: =J36*$G$34 -> 6226.832776 | L36: =H36*365 -> 57.5502008 | M36: =L36*$G$34 -> 75759.79878
B37: =B24 -> Lactancia con cría | C37: 170 | D37: 15.1 | E37: 0.08 | F37: =+F24 -> 30 | H37: =(F37*E37)/24.9 -> 0.09638554217 | I37: =H37*$G$34 -> 126.8831243 | J37: =H37*30 -> 2.891566265 | K37: =J37*$G$34 -> 3806.493728 | L37: =H37*365 -> 35.18072289 | M37: =L37*$G$34 -> 46312.34035
B38: Total pesos generados: | H38: =SUM(H34:H37)*(1-0.2) -> 1.252884414 | I38: =SUM(I34:I37) -> 2061.640746 | J38: =H38*30 -> 37.58653243 | K38: =SUM(K34:K37) -> 61849.22237 | L38: =H38*365 -> 457.3028112 | M38: =SUM(M34:M37) -> 752498.8722
B39: Total kg generados: | H39: =H38*50 -> 62.64422072 | I39: =I38/H39 -> 32.91031035 | J39: =J38*50 -> 1879.326622 | K39: =K38/J39 -> 32.91031035 | L39: =L38*50 -> 22865.14056 | M39: =M38/L39 -> 32.91031035

Sheet Control de cambios (hidden)
B2: CONTROL DE CAMBIOS
B4: Fecha | C4: Actualización | D4: Motivo | E4: Versión actual
B5: 2020-05-21 | C5: Salario mínimo 2020 | D5: Actualización anual | E5: v2.3
B6: 2020-05-21 | C6: 0% en salud, SENA e ICBF | D6: Anteriormente estaba Sin exoneración del pago de parafiscales (LEY 1607 DEL 2012) A partir de la fecha: ARTÍCULO 65. Adiciónese el artículo 114-1 del Estatuto Tributario el cual quedará así: Artículo 114-1. Exoneración de aportes. Estarán exoneradas del pago de los aportes parafiscales a favor del Servicio Nacional del Aprendizaje (SENA), del Instituto Colombiano de Bienestar Familiar (ICBF) y las cotizaciones al Régimen Contributivo de Salud, las sociedades y personas jurídicas y asimiladas contribuyentes declarantes del impuesto sobre la renta y complementarios, correspondientes a los trabajadores que devenguen, individualmente considerados, menos de diez (10) salarios mínimos mensuales legales vigentes. | E6: v2.3
